{"text_format":"1","workbook":"xlsx","n_sheets":13,"sheets":["団体データ","プログラムデータ","著作権データ","著作権データ (例)","印刷","団体精算書","提出書類確認","参加申込書","著作権申請","アナウンス原稿","請求書","ステージ配置図","運搬車輌用団体確認票"],"not_rendered":{"charts":0,"images":4,"macros":1,"external_links":0,"defined_names":10,"comments":0,"pivot_tables":0},"unopened":[],"bounds":{"document_bytes":16777216,"sheet_cells":100000,"rows_first":2000,"rows_last":500,"rows_between":2000,"halvings":0,"cell_chars":16384,"cell_head_chars":4096},"cells_cut":0,"cells_raw":0,"read":"whole","date_system":"1900"}

{"sheet":"団体データ","index":0,"n_rows":48,"n_cols":52,"rows_kept":48,"cut":false,"hidden":false,"merged":[[44,1,47,2],[44,3,45,9],[46,3,47,9],[44,10,44,44],[41,3,41,9],[38,10,38,13],[39,10,39,13],[40,10,40,13],[41,10,41,13],[38,3,38,9],[40,3,40,9],[41,14,41,17],[46,10,46,44],[45,10,45,21],[47,10,47,21],[42,3,42,60],[41,18,41,21],[41,22,41,25],[41,26,41,60],[36,15,36,27],[33,28,33,60],[40,14,40,17],[40,18,40,21],[40,22,40,25],[40,26,40,60],[22,51,22,60],[28,1,28,2],[35,3,36,9],[35,10,35,14],[36,10,36,14],[33,15,33,27],[34,15,34,27],[35,15,35,27],[39,3,39,9],[34,28,34,50],[34,51,34,60],[38,14,38,60],[39,14,39,60],[23,15,23,44],[24,15,24,44],[25,15,25,44],[26,15,26,44],[38,1,42,2],[33,3,34,9],[33,10,33,14],[34,10,34,14],[33,1,36,2],[31,3,31,9],[31,10,31,13],[1,1,4,60],[6,1,8,60],[9,1,9,60],[21,28,21,60],[11,28,11,60],[13,28,13,60],[14,28,14,60],[15,28,15,60],[30,35,30,60],[30,18,30,24],[30,25,30,34],[21,10,21,27],[22,10,22,27],[22,28,22,50],[13,10,13,27],[14,10,14,27],[15,10,15,27],[11,16,11,17],[11,18,11,20],[11,21,11,22],[11,1,11,2],[13,3,13,9],[11,3,11,9],[11,10,11,12],[26,10,26,14],[28,3,28,9],[31,1,31,2],[11,13,11,15],[16,15,16,44],[17,15,17,44],[18,15,18,44],[19,15,19,44],[16,10,16,14],[17,10,17,14],[18,10,18,14],[19,10,19,14],[28,10,28,14],[30,15,30,17],[31,25,31,31],[31,32,31,35],[31,36,31,42],[31,43,31,46],[31,14,31,20],[31,21,31,24],[32,1,32,2],[32,3,32,9],[32,10,32,13],[16,3,19,9],[16,1,19,2],[11,23,11,25],[11,26,11,27],[31,47,31,60],[29,1,30,2],[29,3,30,9],[29,10,30,14],[29,18,29,24],[29,25,29,34],[14,3,14,9],[15,3,15,9],[21,3,21,9],[13,1,15,2],[22,3,22,9],[21,1,22,2],[23,1,26,2],[23,3,26,9],[23,10,23,14],[24,10,24,14],[25,10,25,14]]}
[]
[null,"セキュリティの警告が表示されますが，【コンテンツの有効化】を押してください。\nそうしなければマクロが有効となりませんので必ずお願いします。"]
[]
[]
[]
[]
[null,"筑豊吹奏楽祭参加申込書入力シート【団体データ】"]
[]
[]
[null,"（■色のセルは直接入力，■色のセルは選択式になっています）"]
[]
[null,"①",null,"入力日",null,null,null,null,null,null,"令和",null,null,{"$f":"YEAR(TODAY())-2018","v":5},null,null,"年",null,5,null,null,"月",null,null,null,null,"日",null,"←ドロップダウンリストより選択して下さい。"]
[]
[null,"②",null,"フリガナ",null,null,null,null,null,null,{"$f":"PHONETIC(K15)","v":""},null,null,null,null,null,null,null,null,null,null,null,null,null,null,null,null,null,"←自動入力されますが，違う場合は直接入力して訂正下さい。"]
[null,null,null,"団体名",null,null,null,null,null,null,null,null,null,null,null,null,null,null,null,null,null,null,null,null,null,null,null,null,"←中学校，高等学校については「吹奏楽部，音楽部」は入力せず，正式名称で入力して下さい。（福岡県立，○○市立など）大学，一般についてはクラブ名等，正確に入力して下さい。"]
[null,null,null,"団体所属長名",null,null,null,null,null,null,null,null,null,null,null,null,null,null,null,null,null,null,null,null,null,null,null,null,"←中学校，高等学校は学校長，大学は学長・学部長，一般については団長とします。\n　※名字と名前の間は1文字スペースを入れて下さい。"]
[null,"③",null,"団体所在地",null,null,null,null,null,null,"郵便番号",null,null,null,null,null,null,null,null,null,null,null,null,null,null,null,null,null,null,null,null,null,null,null,null,null,null,null,null,null,null,null,null,null,null,null,"　英数字は半角で入力して下さい。"]
[null,null,null,null,null,null,null,null,null,null,"住所",null,null,null,null,null,null,null,null,null,null,null,null,null,null,null,null,null,null,null,null,null,null,null,null,null,null,null,null,null,null,null,null,null,null,null,"←福岡県より入力してください。"]
[null,null,null,null,null,null,null,null,null,null,"電話"]
[null,null,null,null,null,null,null,null,null,null,"ＦＡＸ"]
[]
[null,"④",null,"フリガナ",null,null,null,null,null,null,{"$f":"PHONETIC(K23)","v":""},null,null,null,null,null,null,null,null,null,null,null,null,null,null,null,null,null,"←自動入力されますが，違う場合は直接入力して訂正下さい。"]
[null,null,null,"責任者名\n（顧問名）",null,null,null,null,null,null,null,null,null,null,null,null,null,null,null,null,null,null,null,null,null,null,null,null,"←名字と名前の間は1文字スペースを入れて下さい。",null,null,null,null,null,null,null,null,null,null,null,null,null,null,null,null,null,null,null,null,null,null,"（例）チクホウ　ジロウ\n（例）筑豊　次郎"]
[null,"⑤",null,"責任者連絡先",null,null,null,null,null,null,"郵便番号",null,null,null,null,null,null,null,null,null,null,null,null,null,null,null,null,null,null,null,null,null,null,null,null,null,null,null,null,null,null,null,null,null,null,null,"　英数字は半角で入力して下さい。"]
[null,null,null,null,null,null,null,null,null,null,"住所",null,null,null,null,null,null,null,null,null,null,null,null,null,null,null,null,null,null,null,null,null,null,null,null,null,null,null,null,null,null,null,null,null,null,null,"←福岡県より入力してください。"]
[null,null,null,null,null,null,null,null,null,null,"電話"]
[null,null,null,null,null,null,null,null,null,null,"携帯電話"]
[]
[null,"⑥",null,"出演日",null,null,null,null,null,null,null,null,null,null,null,"←ドロップダウンリストより選択してください。"]
[null,"⑦",null,"合同団体",null,null,null,null,null,null,null,null,null,null,null,null,null,null,"フリガナ",null,null,null,null,null,null,{"$f":"PHONETIC(Z31)","v":""}]
[null,null,null,null,null,null,null,null,null,null,null,null,null,null,null,"→",null,null,"合同団体名",null,null,null,null,null,null,null,null,null,null,null,null,null,null,null,null,"←合同出演の有無をお選びいただき，ある場合は相手団体を入力して下さい。"]
[null,"⑧",null,"登録者数",null,null,null,null,null,null,null,null,null,null,"うち演奏者数",null,null,null,null,null,null,null,null,null,null,"公的援助生徒数",null,null,null,null,null,null,null,null,null,null,"登録外部員数",null,null,null,null,null,null,null,null,null,null,"←ご自身の団体のみ入力ください。"]
[null,"⑨",null,"プログラム\n購入希望冊数",null,null,null,null,null,null,null,null,null,null,"←購入希望冊数を入力ください。ない場合は０を入力ください。"]
[null,"⑩",null,"指揮者名❶",null,null,null,null,null,null,"フリガナ",null,null,null,null,{"$f":"PHONETIC(P35)","v":""},null,null,null,null,null,null,null,null,null,null,null,null,"←自動入力されますが，違う場合は直接入力して訂正下さい。"]
[null,null,null,null,null,null,null,null,null,null,"氏名",null,null,null,null,null,null,null,null,null,null,null,null,null,null,null,null,null,"←名字と名前の間は1文字スペースを入れて下さい。",null,null,null,null,null,null,null,null,null,null,null,null,null,null,null,null,null,null,null,null,null,null,"（例）カハン　ケイコ\n（例）嘉飯　桂子"]
[null,null,null,"指揮者名❷",null,null,null,null,null,null,"フリガナ",null,null,null,null,{"$f":"PHONETIC(P37)","v":""}]
[null,null,null,null,null,null,null,null,null,null,"氏名"]
[]
[null,"⑪",null,"ピアノ使用",null,null,null,null,null,null,null,null,null,null,"←ドロップダウンリストより選択してください。ピアノ椅子付き。"]
[null,null,null,"借用打楽器",null,null,null,null,null,null,"有り",null,null,null,"←ドロップダウンリストより選択してください。本大会については「有り」を選択。"]
[null,null,null,"ピアノ椅子",null,null,null,null,null,null,null,null,null,null,"→",null,null,null,"必要数",null,null,null,null,null,null,null,"←ドロップダウンリストより選択。必要数も選択してください。"]
[null,null,null,"マイク使用",null,null,null,null,null,null,null,null,null,null,"→",null,null,null,"必要数",null,null,null,null,null,null,null,"←ドロップダウンリストより選択。必要数も選択してください。"]
[null,null,null,"※ここでの申請が無い場合は使用することができません。ご注意下さい。"]
[]
[null,"⑫",null,"写真・録音の承諾",null,null,null,null,null,null,"当連盟指定の各社による録音・写真撮影・ビデオ撮影・販売されることを"]
[null,null,null,null,null,null,null,null,null,null,"承諾します",null,null,null,null,null,null,null,null,null,null,null,"←ドロップダウンリストより選択してください。"]
[null,null,null,"氏名掲載の承諾",null,null,null,null,null,null,"プログラムに団体名・指揮者名・姓と氏名が掲載されることを"]
[null,null,null,null,null,null,null,null,null,null,"承諾します",null,null,null,null,null,null,null,null,null,null,null,"←ドロップダウンリストより選択してください。"]

{"sheet":"プログラムデータ","index":1,"n_rows":76,"n_cols":56,"rows_kept":76,"cut":false,"hidden":false,"merged":[[75,47,75,49],[75,50,75,51],[75,52,75,54],[75,55,75,56],[73,8,74,12],[73,13,73,17],[73,18,73,46],[74,13,74,17],[74,18,74,46],[74,47,74,56],[70,18,70,46],[71,8,72,12],[71,13,71,17],[71,18,71,46],[72,13,72,17],[72,18,72,46],[67,1,75,7],[67,8,68,12],[67,13,67,17],[67,18,67,46],[68,13,68,17],[68,18,68,46],[69,8,70,12],[69,13,69,17],[69,18,69,46],[70,13,70,17],[75,8,75,17],[75,18,75,46],[66,47,66,49],[66,50,66,51],[66,52,66,54],[66,55,66,56],[64,8,65,12],[64,13,64,17],[64,18,64,46],[65,13,65,17],[65,18,65,46],[65,47,65,56],[61,18,61,46],[62,8,63,12],[62,13,62,17],[62,18,62,46],[63,13,63,17],[63,18,63,46],[58,1,66,7],[58,8,59,12],[58,13,58,17],[58,18,58,46],[59,13,59,17],[59,18,59,46],[60,8,61,12],[60,13,60,17],[60,18,60,46],[61,13,61,17],[66,8,66,17],[66,18,66,46],[57,47,57,49],[57,50,57,51],[57,52,57,54],[57,55,57,56],[55,8,56,12],[55,13,55,17],[55,18,55,46],[56,13,56,17],[56,18,56,46],[56,47,56,56],[52,18,52,46],[53,8,54,12],[53,13,53,17],[53,18,53,46],[54,13,54,17],[54,18,54,46],[49,1,57,7],[49,8,50,12],[49,13,49,17],[49,18,49,46],[50,13,50,17],[50,18,50,46],[51,8,52,12],[51,13,51,17],[51,18,51,46],[52,13,52,17],[57,8,57,17],[57,18,57,46],[48,47,48,49],[48,50,48,51],[48,52,48,54],[48,55,48,56],[46,8,47,12],[46,13,46,17],[46,18,46,46],[47,13,47,17],[47,18,47,46],[47,47,47,56],[43,18,43,46],[44,8,45,12],[44,13,44,17],[44,18,44,46],[45,13,45,17],[45,18,45,46],[40,1,48,7],[40,8,41,12],[40,13,40,17],[40,18,40,46],[41,13,41,17],[41,18,41,46],[42,8,43,12],[42,13,42,17],[42,18,42,46],[43,13,43,17],[48,8,48,17],[48,18,48,46],[39,47,39,49],[39,50,39,51],[39,52,39,54],[39,55,39,56],[37,8,38,12],[37,13,37,17],[37,18,37,46],[38,13,38,17],[38,18,38,46],[38,47,38,56],[34,18,34,46],[35,8,36,12],[35,13,35,17],[35,18,35,46],[36,13,36,17],[36,18,36,46],[31,1,39,7],[31,8,32,12],[31,13,31,17],[31,18,31,46],[32,13,32,17],[32,18,32,46],[33,8,34,12],[33,13,33,17],[33,18,33,46],[34,13,34,17],[39,8,39,17],[39,18,39,46],[30,47,30,49],[30,50,30,51],[30,52,30,54],[30,55,30,56],[28,8,29,12],[28,13,28,17],[28,18,28,46],[29,13,29,17],[29,18,29,46],[29,47,29,56],[26,8,27,12],[26,13,26,17],[26,18,26,46],[27,13,27,17],[27,18,27,46],[22,1,30,7],[22,8,23,12],[22,13,22,17],[22,18,22,46],[23,13,23,17],[23,18,23,46],[24,8,25,12],[24,13,24,17],[24,18,24,46],[25,13,25,17],[30,8,30,17],[30,18,30,46],[21,52,21,54],[21,55,21,56],[19,8,20,12],[19,13,19,17],[19,18,19,46],[20,13,20,17],[20,18,20,46],[20,47,20,56],[25,18,25,46],[1,1,4,60],[6,1,8,60],[9,1,9,60],[11,1,11,60],[13,1,21,7],[13,8,14,12],[13,13,13,17],[13,18,13,46],[14,13,14,17],[14,18,14,46],[15,8,16,12],[15,13,15,17],[15,18,15,46],[16,13,16,17],[16,18,16,46],[17,8,18,12],[17,13,17,17],[17,18,17,46],[18,13,18,17],[18,18,18,46],[21,8,21,17],[21,18,21,46],[21,47,21,49],[21,50,21,51]]}
[]
[null,"＊プログラム・アナウンス原稿の入力を行います。ここで入力・プリントアウトされたものが\n　そのままプログラム原稿として使用されますので入力ミスや誤字脱字等には十分お気をつけください。\n　なお，表示・印字のできない外字等については，プリントアウトしたものに手書きで加筆してください。"]
[]
[]
[]
[]
[null,"筑豊吹奏楽祭参加申込書入力シート【プログラムデータ】"]
[]
[]
[null,"（■色のセルは直接入力，■色のセルは選択式になっています）"]
[]
[null,"＊外国曲・外国人作曲者や編曲者はカタカナ表記でお願いします。《例１》を参照ください。\n　読み方については，各団体にてお調べください。\n【例】Dances Polovtsiennes (Tirees De L'Opera Prince Igor) \n　　　　→ 歌劇「イーゴリ公」よりダッタン人の踊り\n　　　Alexander Borodin → Ａ．ボロディン　※ファーストネーム等はアルファベット表記でお願いします。\n\n＊組曲やメドレー曲等については，組曲の曲名のみ・『○○メドレー』等で入力してください。\n　作曲者が複数にわたる場合は，代表(１番最初の方など)を記入し，「他」でかまいません。\n　詳しくは下記《例２》を参考に入力してください。その場合の曲アナウンスについては，\n　編曲者など，出演直前の舞台袖打ち合わせにて対応いたします。\n"]
[]
[null,"例１",null,null,null,null,null,null,"曲名",null,null,null,null,"フリガナ",null,null,null,null,"バレエオンガク「シバノジョウヨウベルキス」ヨリ"]
[null,null,null,null,null,null,null,null,null,null,null,null,null,"記載",null,null,null,null,"バレエ音楽「シバの女王ベルキス」より"]
[null,null,null,null,null,null,null,null,"作曲者",null,null,null,null,"フリガナ",null,null,null,null,"O.レスピーギ"]
[null,null,null,null,null,null,null,null,null,null,null,null,null,"記載",null,null,null,null,"O.レスピーギ"]
[null,null,null,null,null,null,null,null,"編曲者",null,null,null,null,"フリガナ",null,null,null,null,"キムラ　ヨシヒロ"]
[null,null,null,null,null,null,null,null,null,null,null,null,null,"記載",null,null,null,null,"木村　吉宏"]
[null,null,null,null,null,null,null,null,"出版社",null,null,null,null,"原語",null,null,null,null,"de Haske"]
[null,null,null,null,null,null,null,null,null,null,null,null,null,"日本語",null,null,null,null,"デ・ハスケ",null,null,null,null,null,null,null,null,null,null,null,null,null,null,null,null,null,null,null,null,null,null,null,null,null,null,null,null,"演奏時間"]
[null,null,null,null,null,null,null,null,"編曲手続き",null,null,null,null,null,null,null,null,null,"出版されている楽譜(レンタルを含む)を使用しているので不要",null,null,null,null,null,null,null,null,null,null,null,null,null,null,null,null,null,null,null,null,null,null,null,null,null,null,null,null,8,null,null,"分",null,"00",null,null,"秒"]
[null,"例２",null,null,null,null,null,null,"曲名",null,null,null,null,"フリガナ",null,null,null,null,"ジェイ－ベスト2015"]
[null,null,null,null,null,null,null,null,null,null,null,null,null,"記載",null,null,null,null,"J-BEST'15"]
[null,null,null,null,null,null,null,null,"作曲者",null,null,null,null,"フリガナ",null,null,null,null,"イノウエ　ヨシマサ　ホカ"]
[null,null,null,null,null,null,null,null,null,null,null,null,null,"記載",null,null,null,null,"井上　ヨシマサ　他"]
[null,null,null,null,null,null,null,null,"編曲者",null,null,null,null,"フリガナ",null,null,null,null,"ミヤガワ　セイジ"]
[null,null,null,null,null,null,null,null,null,null,null,null,null,"記載",null,null,null,null,"宮川　成治"]
[null,null,null,null,null,null,null,null,"出版社",null,null,null,null,"原語",null,null,null,null,"Winds Score"]
[null,null,null,null,null,null,null,null,null,null,null,null,null,"日本語",null,null,null,null,"ウィンズ・スコア",null,null,null,null,null,null,null,null,null,null,null,null,null,null,null,null,null,null,null,null,null,null,null,null,null,null,null,null,"演奏時間"]
[null,null,null,null,null,null,null,null,"編曲手続き",null,null,null,null,null,null,null,null,null,"出版されている楽譜(レンタルを含む)を使用しているので不要",null,null,null,null,null,null,null,null,null,null,null,null,null,null,null,null,null,null,null,null,null,null,null,null,null,null,null,null,"7",null,null,"分",null,"10",null,null,"秒"]
[null,1,null,null,null,null,null,null,"曲名",null,null,null,null,"フリガナ"]
[null,null,null,null,null,null,null,null,null,null,null,null,null,"記載"]
[null,null,null,null,null,null,null,null,"作曲者",null,null,null,null,"フリガナ"]
[null,null,null,null,null,null,null,null,null,null,null,null,null,"記載"]
[null,null,null,null,null,null,null,null,"編曲者",null,null,null,null,"フリガナ"]
[null,null,null,null,null,null,null,null,null,null,null,null,null,"記載"]
[null,null,null,null,null,null,null,null,"出版社",null,null,null,null,"原語"]
[null,null,null,null,null,null,null,null,null,null,null,null,null,"日本語",null,null,null,null,null,null,null,null,null,null,null,null,null,null,null,null,null,null,null,null,null,null,null,null,null,null,null,null,null,null,null,null,null,"演奏時間"]
[null,null,null,null,null,null,null,null,"編曲手続き",null,null,null,null,null,null,null,null,null,"※選択してください。",null,null,null,null,null,null,null,null,null,null,null,null,null,null,null,null,null,null,null,null,null,null,null,null,null,null,null,null,null,null,null,"分",null,null,null,null,"秒"]
[null,2,null,null,null,null,null,null,"曲名",null,null,null,null,"フリガナ"]
[null,null,null,null,null,null,null,null,null,null,null,null,null,"記載"]
[null,null,null,null,null,null,null,null,"作曲者",null,null,null,null,"フリガナ"]
[null,null,null,null,null,null,null,null,null,null,null,null,null,"記載"]
[null,null,null,null,null,null,null,null,"編曲者",null,null,null,null,"フリガナ"]
[null,null,null,null,null,null,null,null,null,null,null,null,null,"記載"]
[null,null,null,null,null,null,null,null,"出版社",null,null,null,null,"原語"]
[null,null,null,null,null,null,null,null,null,null,null,null,null,"日本語",null,null,null,null,null,null,null,null,null,null,null,null,null,null,null,null,null,null,null,null,null,null,null,null,null,null,null,null,null,null,null,null,null,"演奏時間"]
[null,null,null,null,null,null,null,null,"編曲手続き",null,null,null,null,null,null,null,null,null,"※選択してください。",null,null,null,null,null,null,null,null,null,null,null,null,null,null,null,null,null,null,null,null,null,null,null,null,null,null,null,null,null,null,null,"分",null,null,null,null,"秒"]
[null,3,null,null,null,null,null,null,"曲名",null,null,null,null,"フリガナ"]
[null,null,null,null,null,null,null,null,null,null,null,null,null,"記載"]
[null,null,null,null,null,null,null,null,"作曲者",null,null,null,null,"フリガナ"]
[null,null,null,null,null,null,null,null,null,null,null,null,null,"記載"]
[null,null,null,null,null,null,null,null,"編曲者",null,null,null,null,"フリガナ"]
[null,null,null,null,null,null,null,null,null,null,null,null,null,"記載"]
[null,null,null,null,null,null,null,null,"出版社",null,null,null,null,"原語"]
[null,null,null,null,null,null,null,null,null,null,null,null,null,"日本語",null,null,null,null,null,null,null,null,null,null,null,null,null,null,null,null,null,null,null,null,null,null,null,null,null,null,null,null,null,null,null,null,null,"演奏時間"]
[null,null,null,null,null,null,null,null,"編曲手続き",null,null,null,null,null,null,null,null,null,"※選択してください。",null,null,null,null,null,null,null,null,null,null,null,null,null,null,null,null,null,null,null,null,null,null,null,null,null,null,null,null,null,null,null,"分",null,null,null,null,"秒"]
[null,4,null,null,null,null,null,null,"曲名",null,null,null,null,"フリガナ"]
[null,null,null,null,null,null,null,null,null,null,null,null,null,"記載"]
[null,null,null,null,null,null,null,null,"作曲者",null,null,null,null,"フリガナ"]
[null,null,null,null,null,null,null,null,null,null,null,null,null,"記載"]
[null,null,null,null,null,null,null,null,"編曲者",null,null,null,null,"フリガナ"]
[null,null,null,null,null,null,null,null,null,null,null,null,null,"記載"]
[null,null,null,null,null,null,null,null,"出版社",null,null,null,null,"原語"]
[null,null,null,null,null,null,null,null,null,null,null,null,null,"日本語",null,null,null,null,null,null,null,null,null,null,null,null,null,null,null,null,null,null,null,null,null,null,null,null,null,null,null,null,null,null,null,null,null,"演奏時間"]
[null,null,null,null,null,null,null,null,"編曲手続き",null,null,null,null,null,null,null,null,null,"※選択してください。",null,null,null,null,null,null,null,null,null,null,null,null,null,null,null,null,null,null,null,null,null,null,null,null,null,null,null,null,null,null,null,"分",null,null,null,null,"秒"]
[null,5,null,null,null,null,null,null,"曲名",null,null,null,null,"フリガナ"]
[null,null,null,null,null,null,null,null,null,null,null,null,null,"記載"]
[null,null,null,null,null,null,null,null,"作曲者",null,null,null,null,"フリガナ"]
[null,null,null,null,null,null,null,null,null,null,null,null,null,"記載"]
[null,null,null,null,null,null,null,null,"編曲者",null,null,null,null,"フリガナ"]
[null,null,null,null,null,null,null,null,null,null,null,null,null,"記載"]
[null,null,null,null,null,null,null,null,"出版社",null,null,null,null,"原語"]
[null,null,null,null,null,null,null,null,null,null,null,null,null,"日本語",null,null,null,null,null,null,null,null,null,null,null,null,null,null,null,null,null,null,null,null,null,null,null,null,null,null,null,null,null,null,null,null,null,"演奏時間"]
[null,null,null,null,null,null,null,null,"編曲手続き",null,null,null,null,null,null,null,null,null,"※選択してください。",null,null,null,null,null,null,null,null,null,null,null,null,null,null,null,null,null,null,null,null,null,null,null,null,null,null,null,null,null,null,null,"分",null,null,null,null,"秒"]

{"sheet":"著作権データ","index":2,"n_rows":38,"n_cols":75,"rows_kept":38,"cut":false,"hidden":false,"merged":[[37,74,37,75],[36,68,36,69],[36,70,36,71],[36,72,36,73],[36,74,36,75],[37,1,37,2],[37,3,37,22],[37,23,37,37],[37,38,37,47],[37,48,37,57],[37,58,37,67],[36,1,36,2],[36,3,36,22],[36,23,36,37],[36,38,36,47],[36,48,36,57],[36,58,36,67],[37,68,37,69],[37,70,37,71],[37,72,37,73],[34,74,34,75],[35,1,35,2],[35,3,35,22],[35,23,35,37],[35,38,35,47],[35,48,35,57],[35,58,35,67],[35,68,35,69],[35,70,35,71],[35,72,35,73],[35,74,35,75],[34,1,34,2],[34,3,34,22],[34,23,34,37],[34,38,34,47],[34,48,34,57],[34,58,34,67],[34,68,34,69],[34,70,34,71],[34,72,34,73],[32,74,32,75],[33,1,33,2],[33,3,33,22],[33,23,33,37],[33,38,33,47],[33,48,33,57],[33,58,33,67],[33,68,33,69],[33,70,33,71],[33,72,33,73],[33,74,33,75],[32,1,32,2],[32,3,32,22],[32,23,32,37],[32,38,32,47],[32,48,32,57],[32,58,32,67],[32,68,32,69],[32,70,32,71],[32,72,32,73],[30,74,30,75],[31,1,31,2],[31,3,31,22],[31,23,31,37],[31,38,31,47],[31,48,31,57],[31,58,31,67],[31,68,31,69],[31,70,31,71],[31,72,31,73],[31,74,31,75],[30,1,30,2],[30,3,30,22],[30,23,30,37],[30,38,30,47],[30,48,30,57],[30,58,30,67],[30,68,30,69],[30,70,30,71],[30,72,30,73],[28,74,28,75],[29,1,29,2],[29,3,29,22],[29,23,29,37],[29,38,29,47],[29,48,29,57],[29,58,29,67],[29,68,29,69],[29,70,29,71],[29,72,29,73],[29,74,29,75],[28,1,28,2],[28,3,28,22],[28,23,28,37],[28,38,28,47],[28,48,28,57],[28,58,28,67],[28,68,28,69],[28,70,28,71],[28,72,28,73],[26,74,26,75],[27,1,27,2],[27,3,27,22],[27,23,27,37],[27,38,27,47],[27,48,27,57],[27,58,27,67],[27,68,27,69],[27,70,27,71],[27,72,27,73],[27,74,27,75],[26,1,26,2],[26,3,26,22],[26,23,26,37],[26,38,26,47],[26,48,26,57],[26,58,26,67],[26,68,26,69],[26,70,26,71],[26,72,26,73],[24,74,24,75],[25,1,25,2],[25,3,25,22],[25,23,25,37],[25,38,25,47],[25,48,25,57],[25,58,25,67],[25,68,25,69],[25,70,25,71],[25,72,25,73],[25,74,25,75],[24,1,24,2],[24,3,24,22],[24,23,24,37],[24,38,24,47],[24,48,24,57],[24,58,24,67],[24,68,24,69],[24,70,24,71],[24,72,24,73],[22,74,22,75],[23,1,23,2],[23,3,23,22],[23,23,23,37],[23,38,23,47],[23,48,23,57],[23,58,23,67],[23,68,23,69],[23,70,23,71],[23,72,23,73],[23,74,23,75],[22,1,22,2],[22,3,22,22],[22,23,22,37],[22,38,22,47],[22,48,22,57],[22,58,22,67],[22,68,22,69],[22,70,22,71],[22,72,22,73],[20,74,20,75],[21,1,21,2],[21,3,21,22],[21,23,21,37],[21,38,21,47],[21,48,21,57],[21,58,21,67],[21,68,21,69],[21,70,21,71],[21,72,21,73],[21,74,21,75],[20,1,20,2],[20,3,20,22],[20,23,20,37],[20,38,20,47],[20,48,20,57],[20,58,20,67],[20,68,20,69],[20,70,20,71],[20,72,20,73],[18,74,18,75],[19,1,19,2],[19,3,19,22],[19,23,19,37],[19,38,19,47],[19,48,19,57],[19,58,19,67],[19,68,19,69],[19,70,19,71],[19,72,19,73],[19,74,19,75],[18,1,18,2],[18,3,18,22],[18,23,18,37],[18,38,18,47],[18,48,18,57],[18,58,18,67],[18,68,18,69],[18,70,18,71],[18,72,18,73],[16,74,16,75],[17,1,17,2],[17,3,17,22],[17,23,17,37],[17,38,17,47],[17,48,17,57],[17,58,17,67],[17,68,17,69],[17,70,17,71],[17,72,17,73],[17,74,17,75],[16,1,16,2],[16,3,16,22],[16,23,16,37],[16,38,16,47],[16,48,16,57],[16,58,16,67],[16,68,16,69],[16,70,16,71],[16,72,16,73],[14,68,14,69],[14,70,14,71],[14,72,14,73],[14,74,14,75],[15,1,15,2],[15,3,15,22],[15,23,15,37],[15,38,15,47],[15,48,15,57],[15,58,15,67],[14,1,14,2],[14,3,14,22],[14,23,14,37],[14,38,14,47],[14,48,14,57],[14,58,14,67],[15,68,15,69],[15,70,15,71],[15,72,15,73],[15,74,15,75],[1,1,4,75],[6,1,8,75],[9,1,9,75],[11,1,11,75],[13,1,13,2],[13,3,13,37],[13,38,13,47],[13,48,13,57],[13,58,13,67],[13,68,13,75]]}
[]
[null,"＊著作権申請用紙の入力を行います。著作権の申請は原語表記・フルネームが基本です。\nここで入力されたままJASRACへ申請書を送付しますので不備がある場合は再提出となります。\n楽章やタイトルなどスコアを参照に正確な入力をお願いします。"]
[]
[]
[]
[]
[null,"筑豊吹奏楽祭参加申込書入力シート【著作権申請データ】"]
[]
[]
[null,"（選択式のものはありません。■色のセルに直接入力ください）"]
[]
[null,"・組曲については，楽章ごと入力してください。楽章数がある場合は，数字も必要です。\n・メドレー曲等については演奏する楽曲ごと入力してください。\n・外国曲・外国人作曲者や編曲者は原語表記(英語など)で、かつ、フルネームでお願いします。\n・表示および印字のできない外字等は，プリントアウトしたものに手書きで書き加えて下さい。"]
[]
[null,null,null,"　曲　名　※曲名を左に入力。組曲の場合，楽章名は右に。楽章数・タイトル省略不可",null,null,null,null,null,null,null,null,null,null,null,null,null,null,null,null,null,null,null,null,null,null,null,null,null,null,null,null,null,null,null,null,null,null,"作曲者",null,null,null,null,null,null,null,null,null,"編曲者",null,null,null,null,null,null,null,null,null,"出版社",null,null,null,null,null,null,null,null,null,"演奏時間"]
[null,"例",null,"吹奏楽のための神話（天の岩屋戸の物語による）",null,null,null,null,null,null,null,null,null,null,null,null,null,null,null,null,null,null,null,null,null,null,null,null,null,null,null,null,null,null,null,null,null,null,"大栗　裕",null,null,null,null,null,null,null,null,null,null,null,null,null,null,null,null,null,null,null,"ティーダ",null,null,null,null,null,null,null,null,null,"13",null,"分",null,"30",null,"秒"]
[null,"例",null,"FESTE ROMANE",null,null,null,null,null,null,null,null,null,null,null,null,null,null,null,null,null,null,null,"Ⅰ. Circenses",null,null,null,null,null,null,null,null,null,null,null,null,null,null,"Ottorini Respighi",null,null,null,null,null,null,null,null,null,"森田一浩",null,null,null,null,null,null,null,null,null,"ブレーンミュージック",null,null,null,null,null,null,null,null,null,2,null,"分",null,"00",null,"秒"]
[null,"例",null,null,null,null,null,null,null,null,null,null,null,null,null,null,null,null,null,null,null,null,null,"Ⅳ. La Befana",null,null,null,null,null,null,null,null,null,null,null,null,null,null,"Ottorini Respighi",null,null,null,null,null,null,null,null,null,"森田一浩",null,null,null,null,null,null,null,null,null,"ブレーンミュージック",null,null,null,null,null,null,null,null,null,"5",null,"分",null,"15",null,"秒"]
[null,null,null,"曲名",null,null,null,null,null,null,null,null,null,null,null,null,null,null,null,null,null,null,null,"楽章名",null,null,null,null,null,null,null,null,null,null,null,null,null,null,"作曲者",null,null,null,null,null,null,null,null,null,"編曲者",null,null,null,null,null,null,null,null,null,"出版社",null,null,null,null,null,null,null,null,null,null,null,"分",null,null,null,"秒"]
[null,1,null,null,null,null,null,null,null,null,null,null,null,null,null,null,null,null,null,null,null,null,null,null,null,null,null,null,null,null,null,null,null,null,null,null,null,null,null,null,null,null,null,null,null,null,null,null,null,null,null,null,null,null,null,null,null,null,null,null,null,null,null,null,null,null,null,null,null,null,"分",null,null,null,"秒"]
[null,2,null,null,null,null,null,null,null,null,null,null,null,null,null,null,null,null,null,null,null,null,null,null,null,null,null,null,null,null,null,null,null,null,null,null,null,null,null,null,null,null,null,null,null,null,null,null,null,null,null,null,null,null,null,null,null,null,null,null,null,null,null,null,null,null,null,null,null,null,"分",null,null,null,"秒"]
[null,3,null,null,null,null,null,null,null,null,null,null,null,null,null,null,null,null,null,null,null,null,null,null,null,null,null,null,null,null,null,null,null,null,null,null,null,null,null,null,null,null,null,null,null,null,null,null,null,null,null,null,null,null,null,null,null,null,null,null,null,null,null,null,null,null,null,null,null,null,"分",null,null,null,"秒"]
[null,4,null,null,null,null,null,null,null,null,null,null,null,null,null,null,null,null,null,null,null,null,null,null,null,null,null,null,null,null,null,null,null,null,null,null,null,null,null,null,null,null,null,null,null,null,null,null,null,null,null,null,null,null,null,null,null,null,null,null,null,null,null,null,null,null,null,null,null,null,"分",null,null,null,"秒"]
[null,5,null,null,null,null,null,null,null,null,null,null,null,null,null,null,null,null,null,null,null,null,null,null,null,null,null,null,null,null,null,null,null,null,null,null,null,null,null,null,null,null,null,null,null,null,null,null,null,null,null,null,null,null,null,null,null,null,null,null,null,null,null,null,null,null,null,null,null,null,"分",null,null,null,"秒"]
[null,6,null,null,null,null,null,null,null,null,null,null,null,null,null,null,null,null,null,null,null,null,null,null,null,null,null,null,null,null,null,null,null,null,null,null,null,null,null,null,null,null,null,null,null,null,null,null,null,null,null,null,null,null,null,null,null,null,null,null,null,null,null,null,null,null,null,null,null,null,"分",null,null,null,"秒"]
[null,7,null,null,null,null,null,null,null,null,null,null,null,null,null,null,null,null,null,null,null,null,null,null,null,null,null,null,null,null,null,null,null,null,null,null,null,null,null,null,null,null,null,null,null,null,null,null,null,null,null,null,null,null,null,null,null,null,null,null,null,null,null,null,null,null,null,null,null,null,"分",null,null,null,"秒"]
[null,8,null,null,null,null,null,null,null,null,null,null,null,null,null,null,null,null,null,null,null,null,null,null,null,null,null,null,null,null,null,null,null,null,null,null,null,null,null,null,null,null,null,null,null,null,null,null,null,null,null,null,null,null,null,null,null,null,null,null,null,null,null,null,null,null,null,null,null,null,"分",null,null,null,"秒"]
[null,9,null,null,null,null,null,null,null,null,null,null,null,null,null,null,null,null,null,null,null,null,null,null,null,null,null,null,null,null,null,null,null,null,null,null,null,null,null,null,null,null,null,null,null,null,null,null,null,null,null,null,null,null,null,null,null,null,null,null,null,null,null,null,null,null,null,null,null,null,"分",null,null,null,"秒"]
[null,10,null,null,null,null,null,null,null,null,null,null,null,null,null,null,null,null,null,null,null,null,null,null,null,null,null,null,null,null,null,null,null,null,null,null,null,null,null,null,null,null,null,null,null,null,null,null,null,null,null,null,null,null,null,null,null,null,null,null,null,null,null,null,null,null,null,null,null,null,"分",null,null,null,"秒"]
[null,11,null,null,null,null,null,null,null,null,null,null,null,null,null,null,null,null,null,null,null,null,null,null,null,null,null,null,null,null,null,null,null,null,null,null,null,null,null,null,null,null,null,null,null,null,null,null,null,null,null,null,null,null,null,null,null,null,null,null,null,null,null,null,null,null,null,null,null,null,"分",null,null,null,"秒"]
[null,12,null,null,null,null,null,null,null,null,null,null,null,null,null,null,null,null,null,null,null,null,null,null,null,null,null,null,null,null,null,null,null,null,null,null,null,null,null,null,null,null,null,null,null,null,null,null,null,null,null,null,null,null,null,null,null,null,null,null,null,null,null,null,null,null,null,null,null,null,"分",null,null,null,"秒"]
[null,13,null,null,null,null,null,null,null,null,null,null,null,null,null,null,null,null,null,null,null,null,null,null,null,null,null,null,null,null,null,null,null,null,null,null,null,null,null,null,null,null,null,null,null,null,null,null,null,null,null,null,null,null,null,null,null,null,null,null,null,null,null,null,null,null,null,null,null,null,"分",null,null,null,"秒"]
[null,14,null,null,null,null,null,null,null,null,null,null,null,null,null,null,null,null,null,null,null,null,null,null,null,null,null,null,null,null,null,null,null,null,null,null,null,null,null,null,null,null,null,null,null,null,null,null,null,null,null,null,null,null,null,null,null,null,null,null,null,null,null,null,null,null,null,null,null,null,"分",null,null,null,"秒"]
[null,15,null,null,null,null,null,null,null,null,null,null,null,null,null,null,null,null,null,null,null,null,null,null,null,null,null,null,null,null,null,null,null,null,null,null,null,null,null,null,null,null,null,null,null,null,null,null,null,null,null,null,null,null,null,null,null,null,null,null,null,null,null,null,null,null,null,null,null,null,"分",null,null,null,"秒"]
[null,16,null,null,null,null,null,null,null,null,null,null,null,null,null,null,null,null,null,null,null,null,null,null,null,null,null,null,null,null,null,null,null,null,null,null,null,null,null,null,null,null,null,null,null,null,null,null,null,null,null,null,null,null,null,null,null,null,null,null,null,null,null,null,null,null,null,null,null,null,"分",null,null,null,"秒"]
[null,17,null,null,null,null,null,null,null,null,null,null,null,null,null,null,null,null,null,null,null,null,null,null,null,null,null,null,null,null,null,null,null,null,null,null,null,null,null,null,null,null,null,null,null,null,null,null,null,null,null,null,null,null,null,null,null,null,null,null,null,null,null,null,null,null,null,null,null,null,"分",null,null,null,"秒"]
[null,18,null,null,null,null,null,null,null,null,null,null,null,null,null,null,null,null,null,null,null,null,null,null,null,null,null,null,null,null,null,null,null,null,null,null,null,null,null,null,null,null,null,null,null,null,null,null,null,null,null,null,null,null,null,null,null,null,null,null,null,null,null,null,null,null,null,null,null,null,"分",null,null,null,"秒"]
[null,19,null,null,null,null,null,null,null,null,null,null,null,null,null,null,null,null,null,null,null,null,null,null,null,null,null,null,null,null,null,null,null,null,null,null,null,null,null,null,null,null,null,null,null,null,null,null,null,null,null,null,null,null,null,null,null,null,null,null,null,null,null,null,null,null,null,null,null,null,"分",null,null,null,"秒"]
[null,20,null,null,null,null,null,null,null,null,null,null,null,null,null,null,null,null,null,null,null,null,null,null,null,null,null,null,null,null,null,null,null,null,null,null,null,null,null,null,null,null,null,null,null,null,null,null,null,null,null,null,null,null,null,null,null,null,null,null,null,null,null,null,null,null,null,null,null,null,"分",null,null,null,"秒"]

{"sheet":"著作権データ (例)","index":3,"n_rows":38,"n_cols":75,"rows_kept":38,"cut":false,"hidden":false,"merged":[[37,74,37,75],[36,68,36,69],[36,70,36,71],[36,72,36,73],[36,74,36,75],[37,1,37,2],[37,3,37,22],[37,23,37,37],[37,38,37,47],[37,48,37,57],[37,58,37,67],[36,1,36,2],[36,3,36,22],[36,23,36,37],[36,38,36,47],[36,48,36,57],[36,58,36,67],[37,68,37,69],[37,70,37,71],[37,72,37,73],[34,74,34,75],[35,1,35,2],[35,3,35,22],[35,23,35,37],[35,38,35,47],[35,48,35,57],[35,58,35,67],[35,68,35,69],[35,70,35,71],[35,72,35,73],[35,74,35,75],[34,1,34,2],[34,3,34,22],[34,23,34,37],[34,38,34,47],[34,48,34,57],[34,58,34,67],[34,68,34,69],[34,70,34,71],[34,72,34,73],[32,74,32,75],[33,1,33,2],[33,3,33,22],[33,23,33,37],[33,38,33,47],[33,48,33,57],[33,58,33,67],[33,68,33,69],[33,70,33,71],[33,72,33,73],[33,74,33,75],[32,1,32,2],[32,3,32,22],[32,23,32,37],[32,38,32,47],[32,48,32,57],[32,58,32,67],[32,68,32,69],[32,70,32,71],[32,72,32,73],[30,74,30,75],[31,1,31,2],[31,3,31,22],[31,23,31,37],[31,38,31,47],[31,48,31,57],[31,58,31,67],[31,68,31,69],[31,70,31,71],[31,72,31,73],[31,74,31,75],[30,1,30,2],[30,3,30,22],[30,23,30,37],[30,38,30,47],[30,48,30,57],[30,58,30,67],[30,68,30,69],[30,70,30,71],[30,72,30,73],[28,74,28,75],[29,1,29,2],[29,3,29,22],[29,23,29,37],[29,38,29,47],[29,48,29,57],[29,58,29,67],[29,68,29,69],[29,70,29,71],[29,72,29,73],[29,74,29,75],[28,1,28,2],[28,3,28,22],[28,23,28,37],[28,38,28,47],[28,48,28,57],[28,58,28,67],[28,68,28,69],[28,70,28,71],[28,72,28,73],[26,74,26,75],[27,1,27,2],[27,3,27,22],[27,23,27,37],[27,38,27,47],[27,48,27,57],[27,58,27,67],[27,68,27,69],[27,70,27,71],[27,72,27,73],[27,74,27,75],[26,1,26,2],[26,3,26,22],[26,23,26,37],[26,38,26,47],[26,48,26,57],[26,58,26,67],[26,68,26,69],[26,70,26,71],[26,72,26,73],[24,74,24,75],[25,1,25,2],[25,3,25,22],[25,23,25,37],[25,38,25,47],[25,48,25,57],[25,58,25,67],[25,68,25,69],[25,70,25,71],[25,72,25,73],[25,74,25,75],[24,1,24,2],[24,3,24,22],[24,23,24,37],[24,38,24,47],[24,48,24,57],[24,58,24,67],[24,68,24,69],[24,70,24,71],[24,72,24,73],[22,74,22,75],[23,1,23,2],[23,3,23,22],[23,23,23,37],[23,38,23,47],[23,48,23,57],[23,58,23,67],[23,68,23,69],[23,70,23,71],[23,72,23,73],[23,74,23,75],[22,1,22,2],[22,3,22,22],[22,23,22,37],[22,38,22,47],[22,48,22,57],[22,58,22,67],[22,68,22,69],[22,70,22,71],[22,72,22,73],[20,74,20,75],[21,1,21,2],[21,3,21,22],[21,23,21,37],[21,38,21,47],[21,48,21,57],[21,58,21,67],[21,68,21,69],[21,70,21,71],[21,72,21,73],[21,74,21,75],[20,1,20,2],[20,3,20,22],[20,23,20,37],[20,38,20,47],[20,48,20,57],[20,58,20,67],[20,68,20,69],[20,70,20,71],[20,72,20,73],[18,74,18,75],[19,1,19,2],[19,3,19,22],[19,23,19,37],[19,38,19,47],[19,48,19,57],[19,58,19,67],[19,68,19,69],[19,70,19,71],[19,72,19,73],[19,74,19,75],[18,1,18,2],[18,3,18,22],[18,23,18,37],[18,38,18,47],[18,48,18,57],[18,58,18,67],[18,68,18,69],[18,70,18,71],[18,72,18,73],[16,74,16,75],[17,1,17,2],[17,3,17,22],[17,23,17,37],[17,38,17,47],[17,48,17,57],[17,58,17,67],[17,68,17,69],[17,70,17,71],[17,72,17,73],[17,74,17,75],[16,1,16,2],[16,3,16,22],[16,23,16,37],[16,38,16,47],[16,48,16,57],[16,58,16,67],[16,68,16,69],[16,70,16,71],[16,72,16,73],[14,68,14,69],[14,70,14,71],[14,72,14,73],[14,74,14,75],[15,1,15,2],[15,3,15,22],[15,23,15,37],[15,38,15,47],[15,48,15,57],[15,58,15,67],[14,1,14,2],[14,3,14,22],[14,23,14,37],[14,38,14,47],[14,48,14,57],[14,58,14,67],[15,68,15,69],[15,70,15,71],[15,72,15,73],[15,74,15,75],[1,1,4,75],[6,1,8,75],[9,1,9,75],[11,1,11,75],[13,1,13,2],[13,3,13,37],[13,38,13,47],[13,48,13,57],[13,58,13,67],[13,68,13,75]]}
[]
[null,"＊著作権申請用紙の入力を行います。著作権の申請は原語表記・フルネームが基本です。\nここで入力されたままJASRACへ申請書を送付しますので不備がある場合は再提出となります。\n楽章やタイトルなどスコアを参照に正確な入力をお願いします。"]
[]
[]
[]
[]
[null,"筑豊吹奏楽祭参加申込書入力シート【著作権申請データ】入力参考"]
[]
[]
[null,"（選択式のものはありません。■色のセルに直接入力ください）"]
[]
[null,"・組曲については，楽章ごと入力してください。楽章数がある場合は，数字も必要です。\n・メドレー曲等については演奏する楽曲ごと入力してください。\n・外国曲・外国人作曲者や編曲者は原語表記(英語など)で、かつ、フルネームでお願いします。\n・表示および印字のできない外字等は，プリントアウトしたものに手書きで書き加えて下さい。"]
[]
[null,null,null,"　曲　名　※曲名を左に入力。組曲の場合，楽章名は右に。楽章数・タイトル省略不可",null,null,null,null,null,null,null,null,null,null,null,null,null,null,null,null,null,null,null,null,null,null,null,null,null,null,null,null,null,null,null,null,null,null,"作曲者",null,null,null,null,null,null,null,null,null,"編曲者",null,null,null,null,null,null,null,null,null,"出版社",null,null,null,null,null,null,null,null,null,"演奏時間"]
[null,"例",null,"吹奏楽のための神話（天の岩屋戸の物語による）",null,null,null,null,null,null,null,null,null,null,null,null,null,null,null,null,null,null,null,null,null,null,null,null,null,null,null,null,null,null,null,null,null,null,"大栗　裕",null,null,null,null,null,null,null,null,null,null,null,null,null,null,null,null,null,null,null,"ティーダ",null,null,null,null,null,null,null,null,null,"13",null,"分",null,"30",null,"秒"]
[null,"例",null,"FESTE ROMANE",null,null,null,null,null,null,null,null,null,null,null,null,null,null,null,null,null,null,null,"Ⅰ. Circenses",null,null,null,null,null,null,null,null,null,null,null,null,null,null,"Ottorini Respighi",null,null,null,null,null,null,null,null,null,"森田一浩",null,null,null,null,null,null,null,null,null,"ブレーンミュージック",null,null,null,null,null,null,null,null,null,2,null,"分",null,"00",null,"秒"]
[null,"例",null,null,null,null,null,null,null,null,null,null,null,null,null,null,null,null,null,null,null,null,null,"Ⅳ. La Befana",null,null,null,null,null,null,null,null,null,null,null,null,null,null,"Ottorini Respighi",null,null,null,null,null,null,null,null,null,"森田一浩",null,null,null,null,null,null,null,null,null,"ブレーンミュージック",null,null,null,null,null,null,null,null,null,"5",null,"分",null,"15",null,"秒"]
[null,null,null,"曲名",null,null,null,null,null,null,null,null,null,null,null,null,null,null,null,null,null,null,null,"楽章名",null,null,null,null,null,null,null,null,null,null,null,null,null,null,"作曲者",null,null,null,null,null,null,null,null,null,"編曲者",null,null,null,null,null,null,null,null,null,"出版社",null,null,null,null,null,null,null,null,null,null,null,"分",null,null,null,"秒"]
[null,1,null,"カーペンターズ・フォーエバー",null,null,null,null,null,null,null,null,null,null,null,null,null,null,null,null,null,null,null,"Sing",null,null,null,null,null,null,null,null,null,null,null,null,null,null,"Joe Raposo",null,null,null,null,null,null,null,null,null,"真島　俊夫",null,null,null,null,null,null,null,null,null,"ヤマハミュージックメディア",null,null,null,null,null,null,null,null,null,"1",null,"分",null,"11",null,"秒"]
[null,2,null,null,null,null,null,null,null,null,null,null,null,null,null,null,null,null,null,null,null,null,null,"We've Only Just Begun",null,null,null,null,null,null,null,null,null,null,null,null,null,null,"Roger Nichols & Paul Williams",null,null,null,null,null,null,null,null,null,"真島　俊夫",null,null,null,null,null,null,null,null,null,"ヤマハミュージックメディア",null,null,null,null,null,null,null,null,null,"2",null,"分",null,"22",null,"秒"]
[null,3,null,null,null,null,null,null,null,null,null,null,null,null,null,null,null,null,null,null,null,null,null,"Top of the World",null,null,null,null,null,null,null,null,null,null,null,null,null,null,"John Bettis & Richard Carpenter",null,null,null,null,null,null,null,null,null,"真島　俊夫",null,null,null,null,null,null,null,null,null,"ヤマハミュージックメディア",null,null,null,null,null,null,null,null,null,"3",null,"分",null,"33",null,"秒"]
[null,4,null,null,null,null,null,null,null,null,null,null,null,null,null,null,null,null,null,null,null,null,null,"(They Long To Be)Close to You",null,null,null,null,null,null,null,null,null,null,null,null,null,null,"Hal David & Burt Bacharach",null,null,null,null,null,null,null,null,null,"真島　俊夫",null,null,null,null,null,null,null,null,null,"ヤマハミュージックメディア",null,null,null,null,null,null,null,null,null,"4",null,"分",null,"44",null,"秒"]
[null,5,null,null,null,null,null,null,null,null,null,null,null,null,null,null,null,null,null,null,null,null,null,"Superstar",null,null,null,null,null,null,null,null,null,null,null,null,null,null,"Leon Russell & Bonnie Bramlett",null,null,null,null,null,null,null,null,null,"真島　俊夫",null,null,null,null,null,null,null,null,null,"ヤマハミュージックメディア",null,null,null,null,null,null,null,null,null,"5",null,"分",null,"55",null,"秒"]
[null,6,null,null,null,null,null,null,null,null,null,null,null,null,null,null,null,null,null,null,null,null,null,"For All We Know",null,null,null,null,null,null,null,null,null,null,null,null,null,null,"Fred Karlin & James Griffin & Robb Wilson",null,null,null,null,null,null,null,null,null,"真島　俊夫",null,null,null,null,null,null,null,null,null,"ヤマハミュージックメディア",null,null,null,null,null,null,null,null,null,"6",null,"分",null,"66",null,"秒"]
[null,7,null,"Belkis, Regina di Saba",null,null,null,null,null,null,null,null,null,null,null,null,null,null,null,null,null,null,null,"Il sogno di Salomone",null,null,null,null,null,null,null,null,null,null,null,null,null,null,"Ottorini Respighi",null,null,null,null,null,null,null,null,null,"石津谷　治法",null,null,null,null,null,null,null,null,null,"フォスターミュージック",null,null,null,null,null,null,null,null,null,"7",null,"分",null,"77",null,"秒"]
[null,8,null,null,null,null,null,null,null,null,null,null,null,null,null,null,null,null,null,null,null,null,null,"La danza di Belkis all'aurora",null,null,null,null,null,null,null,null,null,null,null,null,null,null,"Ottorini Respighi",null,null,null,null,null,null,null,null,null,"石津谷　治法",null,null,null,null,null,null,null,null,null,"フォスターミュージック",null,null,null,null,null,null,null,null,null,"8",null,"分",null,"88",null,"秒"]
[null,9,null,null,null,null,null,null,null,null,null,null,null,null,null,null,null,null,null,null,null,null,null,"Danza guerresca",null,null,null,null,null,null,null,null,null,null,null,null,null,null,"Ottorini Respighi",null,null,null,null,null,null,null,null,null,"石津谷　治法",null,null,null,null,null,null,null,null,null,"フォスターミュージック",null,null,null,null,null,null,null,null,null,"9",null,"分",null,"99",null,"秒"]
[null,10,null,null,null,null,null,null,null,null,null,null,null,null,null,null,null,null,null,null,null,null,null,"Danza orgiastica",null,null,null,null,null,null,null,null,null,null,null,null,null,null,"Ottorini Respighi",null,null,null,null,null,null,null,null,null,"石津谷　治法",null,null,null,null,null,null,null,null,null,"フォスターミュージック",null,null,null,null,null,null,null,null,null,"10",null,"分",null,"00",null,"秒"]
[null,11,null,null,null,null,null,null,null,null,null,null,null,null,null,null,null,null,null,null,null,null,null,null,null,null,null,null,null,null,null,null,null,null,null,null,null,null,null,null,null,null,null,null,null,null,null,null,null,null,null,null,null,null,null,null,null,null,null,null,null,null,null,null,null,null,null,null,null,null,"分",null,null,null,"秒"]
[null,12,null,null,null,null,null,null,null,null,null,null,null,null,null,null,null,null,null,null,null,null,null,null,null,null,null,null,null,null,null,null,null,null,null,null,null,null,null,null,null,null,null,null,null,null,null,null,null,null,null,null,null,null,null,null,null,null,null,null,null,null,null,null,null,null,null,null,null,null,"分",null,null,null,"秒"]
[null,13,null,null,null,null,null,null,null,null,null,null,null,null,null,null,null,null,null,null,null,null,null,null,null,null,null,null,null,null,null,null,null,null,null,null,null,null,null,null,null,null,null,null,null,null,null,null,null,null,null,null,null,null,null,null,null,null,null,null,null,null,null,null,null,null,null,null,null,null,"分",null,null,null,"秒"]
[null,14,null,null,null,null,null,null,null,null,null,null,null,null,null,null,null,null,null,null,null,null,null,null,null,null,null,null,null,null,null,null,null,null,null,null,null,null,null,null,null,null,null,null,null,null,null,null,null,null,null,null,null,null,null,null,null,null,null,null,null,null,null,null,null,null,null,null,null,null,"分",null,null,null,"秒"]
[null,15,null,null,null,null,null,null,null,null,null,null,null,null,null,null,null,null,null,null,null,null,null,null,null,null,null,null,null,null,null,null,null,null,null,null,null,null,null,null,null,null,null,null,null,null,null,null,null,null,null,null,null,null,null,null,null,null,null,null,null,null,null,null,null,null,null,null,null,null,"分",null,null,null,"秒"]
[null,16,null,null,null,null,null,null,null,null,null,null,null,null,null,null,null,null,null,null,null,null,null,null,null,null,null,null,null,null,null,null,null,null,null,null,null,null,null,null,null,null,null,null,null,null,null,null,null,null,null,null,null,null,null,null,null,null,null,null,null,null,null,null,null,null,null,null,null,null,"分",null,null,null,"秒"]
[null,17,null,null,null,null,null,null,null,null,null,null,null,null,null,null,null,null,null,null,null,null,null,null,null,null,null,null,null,null,null,null,null,null,null,null,null,null,null,null,null,null,null,null,null,null,null,null,null,null,null,null,null,null,null,null,null,null,null,null,null,null,null,null,null,null,null,null,null,null,"分",null,null,null,"秒"]
[null,18,null,null,null,null,null,null,null,null,null,null,null,null,null,null,null,null,null,null,null,null,null,null,null,null,null,null,null,null,null,null,null,null,null,null,null,null,null,null,null,null,null,null,null,null,null,null,null,null,null,null,null,null,null,null,null,null,null,null,null,null,null,null,null,null,null,null,null,null,"分",null,null,null,"秒"]
[null,19,null,null,null,null,null,null,null,null,null,null,null,null,null,null,null,null,null,null,null,null,null,null,null,null,null,null,null,null,null,null,null,null,null,null,null,null,null,null,null,null,null,null,null,null,null,null,null,null,null,null,null,null,null,null,null,null,null,null,null,null,null,null,null,null,null,null,null,null,"分",null,null,null,"秒"]
[null,20,null,null,null,null,null,null,null,null,null,null,null,null,null,null,null,null,null,null,null,null,null,null,null,null,null,null,null,null,null,null,null,null,null,null,null,null,null,null,null,null,null,null,null,null,null,null,null,null,null,null,null,null,null,null,null,null,null,null,null,null,null,null,null,null,null,null,null,null,"分",null,null,null,"秒"]

{"sheet":"印刷","index":4,"n_rows":17,"n_cols":2,"rows_kept":17,"cut":false,"hidden":false,"merged":[[1,1,1,87],[16,1,16,87]]}
[]
[null,"入力お疲れ様でした。\nここでは入力したデータを印刷します。\n下記ボタンにて必要書類をプリントアウトしてください。"]
[]
[]
[]
[]
[]
[]
[]
[]
[]
[]
[]
[]
[]
[]
[null,"必要に応じて，各ボタンよりプリントアウトして確認の上，大会申込日にご提出ください。"]

{"sheet":"団体精算書","index":5,"n_rows":38,"n_cols":49,"rows_kept":38,"cut":false,"hidden":false,"merged":[[14,27,14,31],[15,27,15,31],[15,23,15,26],[33,48,33,50],[33,23,33,32],[33,33,33,35],[33,36,33,38],[33,39,33,41],[33,42,33,44],[33,45,33,47],[29,33,29,35],[29,36,29,38],[29,39,29,41],[29,42,29,44],[29,45,29,47],[29,48,29,50],[28,30,28,32],[28,33,28,35],[28,36,28,38],[28,39,28,41],[28,42,28,44],[27,42,27,44],[27,45,27,47],[27,48,27,50],[30,5,30,14],[31,5,31,14],[28,45,28,47],[28,48,28,50],[29,10,29,14],[29,15,29,20],[29,21,29,23],[29,24,29,29],[29,30,29,32],[30,45,30,47],[30,48,30,50],[31,15,31,20],[31,24,31,29],[31,33,31,35],[31,36,31,38],[31,39,31,41],[31,42,31,44],[31,45,31,47],[31,48,31,50],[30,15,30,20],[30,21,30,23],[30,24,30,29],[30,30,30,32],[30,33,30,35],[26,5,26,14],[26,15,26,20],[18,25,18,29],[18,34,18,38],[28,10,28,14],[28,15,28,20],[28,21,28,23],[28,24,28,29],[27,5,27,14],[27,15,27,20],[27,33,27,35],[27,36,27,38],[28,5,29,9],[25,33,25,35],[25,36,25,38],[18,44,18,48],[21,39,21,43],[21,44,21,48],[24,3,24,4],[24,5,24,17],[18,3,21,4],[18,5,21,17],[19,30,19,33],[21,30,21,33],[19,34,19,38],[21,34,21,38],[19,39,19,43],[19,44,19,48],[12,23,12,26],[11,3,12,4],[11,18,11,22],[12,27,12,31],[12,32,12,36],[12,37,12,41],[12,42,12,46],[12,47,12,51],[11,5,12,17],[12,18,12,22],[11,27,11,31],[11,37,11,41],[11,47,11,51],[1,1,1,53],[3,2,3,52],[5,5,5,11],[5,12,5,49],[7,5,7,18],[7,19,7,49],[8,19,8,49],[8,5,8,9],[8,10,8,12],[8,13,8,18],[30,36,30,38],[30,39,30,41],[30,42,30,44],[25,24,25,29],[26,24,26,29],[26,30,26,32],[26,33,26,35],[26,36,26,38],[26,39,26,41],[27,39,27,41],[25,39,25,41],[25,42,25,44],[25,45,25,47],[25,48,25,50],[19,18,19,24],[21,18,21,24],[19,25,19,29],[21,25,21,29],[26,21,26,23],[26,42,26,44],[26,45,26,47],[26,48,26,50],[32,5,32,14],[32,15,32,20],[32,24,32,29],[32,33,32,35],[32,36,32,38],[32,39,32,41],[32,42,32,44],[32,45,32,47],[32,48,32,50],[32,21,32,23],[32,30,32,32]]}
[]
[null,"大会当日にステージ配置図・チケット残券と併せてお持ちください。"]
[]
[null,null,"団　体　精　算　書"]
[]
[null,null,null,null,null,"事業名",null,null,null,null,null,null,{"$f":"\"第 \"&YEAR(TODAY())-1958&\" 回　筑豊吹奏楽祭\"","v":"第 65 回　筑豊吹奏楽祭"}]
[]
[null,null,null,null,null,"出演順",null,null,null,null,null,null,null,null,null,null,null,null,null,"団体名"]
[null,null,null,null,null,{"$f":"団体データ!K29","v":0},null,null,null,null,"－",null,null,null,null,null,null,null,null,{"$f":"団体データ!K15","v":0}]
[]
[null,null,null,null,null,null,"＊塗りつぶされた部分を入力してプリントアウトされた用紙をご提出ください。"]
[null,null,null,"①",null,"リボン・プログラム数",null,null,null,null,null,null,null,null,null,null,null,null,"事前登録数",null,null,null,null,null,null,null,null,"当日欠席者",null,null,null,null,null,null,null,null,null,"引率者",null,null,null,null,null,null,null,null,null,"配布数"]
[null,null,null,null,null,null,null,null,null,null,null,null,null,null,null,null,null,null,{"$f":"団体データ!K32","v":0},null,null,null,null,"-",null,null,null,null,null,null,null,null,"＋",null,null,null,null,3,null,null,null,null,"＝",null,null,null,null,{"$f":"S13-AB13+AB16+AL13","v":3}]
[]
[null,null,null,null,null,null,null,null,null,null,null,null,null,null,null,null,null,null,null,null,null,null,null,null,null,null,null,"当日増演者"]
[null,null,null,null,null,null,null,null,null,null,null,null,null,null,null,null,null,null,null,null,null,null,null,"+"]
[]
[]
[null,null,null,"②",null,"チケット精算（残券確認）",null,null,null,null,null,null,null,null,null,null,null,null,null,null,null,null,null,null,null,"持ち帰り数",null,null,null,null,null,null,null,null,"販売数",null,null,null,null,null,null,null,null,null,"残券数"]
[null,null,null,null,null,null,null,null,null,null,null,null,null,null,null,null,null,null,"学生券",null,null,null,null,null,null,null,null,null,null,null,"-",null,null,null,null,null,null,null,null,"＝",null,null,null,null,{"$f":"Z20-AI20","v":0}]
[]
[null,null,null,null,null,null,null,null,null,null,null,null,null,null,null,null,null,null,"一般券",null,null,null,null,null,null,null,null,null,null,null,"-",null,null,null,null,null,null,null,null,"＝",null,null,null,null,{"$f":"Z22-AI22","v":0}]
[]
[]
[null,null,null,"③",null,"納入金額確認"]
[null,null,null,null,null,null,null,null,null,null,null,null,null,null,null,null,null,null,null,null,null,null,null,null,"(登録者－公的援助生徒数)",null,null,null,null,null,null,null,null,null,null,null,"万",null,null,"千",null,null,"百",null,null,"十",null,null,"一"]
[null,null,null,{"$f":"P27*Y27","v":0},null,"参加料",null,null,null,null,null,null,null,null,null,500,null,null,null,null,null,"×",null,null,{"$f":"団体データ!K32-団体データ!AG32","v":0},null,null,null,null,null,"＝",null,null,{"$f":"IF(ISERROR(MID(D27,LEN(D27)-5,1)),\"\",MID(D27,LEN(D27)-5,1))","v":""},null,null,{"$f":"IF(ISERROR(MID(D27,LEN(D27)-4,1)),\"\",MID(D27,LEN(D27)-4,1))","v":""},null,null,{"$f":"IF(ISERROR(MID(D27,LEN(D27)-3,1)),\"\",MID(D27,LEN(D27)-3,1))","v":""},null,null,{"$f":"IF(ISERROR(MID(D27,LEN(D27)-2,1)),\"\",MID(D27,LEN(D27)-2,1))","v":""},null,null,0,null,null,0]
[null,null,null,{"$f":"P28*Y28","v":1500},null,"著作権料",null,null,null,null,null,null,null,null,null,1500,null,null,null,null,null,null,null,null,1,null,null,null,null,null,null,null,null,{"$f":"IF(ISERROR(MID(D28,LEN(D28)-5,1)),\"\",MID(D28,LEN(D28)-5,1))","v":""},null,null,{"$f":"IF(ISERROR(MID(D28,LEN(D28)-4,1)),\"\",MID(D28,LEN(D28)-4,1))","v":""},null,null,{"$f":"IF(ISERROR(MID(D28,LEN(D28)-3,1)),\"\",MID(D28,LEN(D28)-3,1))","v":"1"},null,null,{"$f":"IF(ISERROR(MID(D28,LEN(D28)-2,1)),\"\",MID(D28,LEN(D28)-2,1))","v":"5"},null,null,0,null,null,0]
[null,null,null,0,null,"前売り\nチケット",null,null,null,null,"学生券",null,null,null,null,800,null,null,null,null,null,"×",null,null,{"$f":"AI20","v":0},null,null,null,null,null,"＝",null,null,"",null,null,"",null,null,"",null,null,"",null,null,0,null,null,0]
[null,null,null,0,null,null,null,null,null,null,"一般券",null,null,null,null,1000,null,null,null,null,null,"×",null,null,{"$f":"AI22","v":0},null,null,null,null,null,"＝",null,null,"",null,null,"",null,null,"",null,null,"",null,null,0,null,null,0]
[null,null,null,0,null,"登録外部員チケット",null,null,null,null,null,null,null,null,null,500,null,null,null,null,null,"×",null,null,{"$f":"団体データ!AR32","v":0},null,null,null,null,null,"＝",null,null,"",null,null,"",null,null,"",null,null,"",null,null,0,null,null,0]
[null,null,null,0,null,"ピアノ使用料",null,null,null,null,null,null,null,null,null,3000,null,null,null,null,null,null,null,null,{"$f":"IF(団体データ!$K$39=\"有り\",\"1\",\"0\")","v":"0"},null,null,null,null,null,null,null,null,"",null,null,"",null,null,"",null,null,"",null,null,0,null,null,0]
[null,null,null,{"$f":"P33*Y33","v":0},null,"プログラム購入料",null,null,null,null,null,null,null,null,null,500,null,null,null,null,null,"×",null,null,{"$f":"団体データ!K33","v":0},null,null,null,null,null,"＝",null,null,{"$f":"IF(ISERROR(MID(D33,LEN(D33)-5,1)),\"\",MID(D33,LEN(D33)-5,1))","v":""},null,null,{"$f":"IF(ISERROR(MID(D33,LEN(D33)-4,1)),\"\",MID(D33,LEN(D33)-4,1))","v":""},null,null,{"$f":"IF(ISERROR(MID(D33,LEN(D33)-3,1)),\"\",MID(D33,LEN(D33)-3,1))","v":""},null,null,{"$f":"IF(ISERROR(MID(D33,LEN(D33)-2,1)),\"\",MID(D33,LEN(D33)-2,1))","v":""},null,null,0,null,null,0]
[null,null,null,{"$f":"SUM(D27:D32)","v":1500},null,null,null,null,null,null,null,null,null,null,null,null,null,null,null,null,null,null,null,"合計",null,null,null,null,null,null,null,null,null,"",null,null,"",null,null,"1",null,null,"5",null,null,0,null,null,0]
[]
[null,null,null,null,null,"※出演当日の団体受付にて、提出してください。"]
[null,null,null,null,null,"※前売り券の残券と、ステージ配置図（Ｂ４で２枚）をご持参下さい。"]
[null,null,null,null,null,"※登録外部員チケットは、代表者会議にて販売・お渡しとなります。"]

{"sheet":"提出書類確認","index":6,"n_rows":45,"n_cols":52,"rows_kept":45,"cut":false,"hidden":false,"merged":[[31,3,31,4],[31,5,31,14],[31,15,31,36],[31,37,31,50],[11,3,13,4],[11,5,13,14],[11,15,11,50],[13,15,13,50],[21,3,21,4],[21,5,21,14],[21,15,21,50],[29,3,29,4],[29,5,29,14],[29,37,29,50],[11,51,11,52],[12,15,12,50],[12,51,12,52],[3,2,3,52],[5,5,5,11],[5,12,5,49],[7,5,7,11],[7,12,7,49],[10,3,10,4],[10,5,10,14],[10,51,10,52],[10,15,10,50],[13,51,13,52],[17,15,17,50],[17,51,17,52],[18,15,18,50],[18,51,18,52],[14,5,17,14],[14,3,17,4],[15,15,15,50],[15,51,15,52],[16,15,16,50],[16,51,16,52],[14,15,14,50],[14,51,14,52],[21,51,21,52],[19,5,20,14],[19,3,20,4],[19,15,19,50],[19,51,19,52],[18,5,18,14],[20,15,20,50],[20,51,20,52],[18,3,18,4],[30,51,30,52],[31,51,31,52],[23,15,23,50],[23,51,23,52],[23,3,23,4],[23,5,23,14],[22,3,22,4],[22,5,22,14],[22,15,22,50],[22,51,22,52],[26,15,26,24],[26,25,26,27],[26,28,26,32],[26,33,26,34],[26,35,26,36],[26,37,26,50],[26,5,28,14],[26,3,28,4],[27,15,27,27],[27,28,27,32],[30,3,30,4],[30,5,30,14],[30,15,30,36],[30,37,30,50],[29,51,29,52],[29,15,29,27],[29,28,29,32],[29,33,29,34],[29,35,29,36],[26,51,26,52],[27,51,27,52],[28,51,28,52],[27,33,27,34],[28,37,28,50],[27,35,27,50],[36,37,36,50],[34,51,34,52],[34,5,35,14],[34,3,35,4],[33,3,33,4],[33,5,33,14],[33,15,33,36],[33,37,33,50],[33,51,33,52],[41,4,41,18],[42,22,42,23],[42,6,42,7],[42,38,42,39],[42,40,42,49],[42,8,42,18],[42,24,42,34],[1,1,1,54],[28,15,28,27],[28,28,28,32],[28,33,28,34],[28,35,28,36],[38,37,38,50],[38,51,38,52],[36,15,38,36],[36,5,38,14],[36,3,38,4],[36,51,36,52],[37,51,37,52],[37,37,37,50],[35,51,35,52],[34,28,34,50],[35,28,35,50],[34,15,35,27],[39,48,39,50],[39,51,39,52],[39,3,39,4],[39,5,39,14],[39,15,39,20],[39,21,39,23],[39,24,39,29],[39,30,39,32],[39,33,39,38],[39,39,39,41],[39,42,39,47],[32,3,32,4],[32,5,32,14],[32,28,32,32],[32,33,32,34],[32,35,32,36],[32,37,32,50],[32,51,32,52],[32,25,32,27],[32,15,32,24]]}
[]
[null,"提出前に書類の確認を行い，理事会当日にお持ちください。"]
[]
[null,null,"提　出　書　類　確　認　用　紙"]
[]
[null,null,null,null,null,"団体名",null,null,null,null,null,null,{"$f":"団体データ!K15","v":0}]
[]
[null,null,null,null,null,"会議名",null,null,null,null,null,null,"第1回 理事会（吹奏楽祭申し込み）"]
[]
[null,null,null,"提出書類・・・以下の順番に並べて提出してください。"]
[null,null,null,"①",null,"本確認用紙",null,null,null,null,null,null,null,null,null,"必要書類の確認を行ってください。以下、レ点にてチェック",null,null,null,null,null,null,null,null,null,null,null,null,null,null,null,null,null,null,null,null,null,null,null,null,null,null,null,null,null,null,null,null,null,null,null,"□"]
[null,null,null,"②",null,"参加申込書",null,null,null,null,null,null,null,null,null,"必要事項は記入されていますか？",null,null,null,null,null,null,null,null,null,null,null,null,null,null,null,null,null,null,null,null,null,null,null,null,null,null,null,null,null,null,null,null,null,null,null,"□"]
[null,null,null,null,null,null,null,null,null,null,null,null,null,null,null,"所属長・責任者の２カ所に捺印されていますか？",null,null,null,null,null,null,null,null,null,null,null,null,null,null,null,null,null,null,null,null,null,null,null,null,null,null,null,null,null,null,null,null,null,null,null,"□"]
[null,null,null,null,null,null,null,null,null,null,null,null,null,null,null,"原本＋コピーの２枚ありますか？",null,null,null,null,null,null,null,null,null,null,null,null,null,null,null,null,null,null,null,null,null,null,null,null,null,null,null,null,null,null,null,null,null,null,null,"□"]
[null,null,null,"③",null,"著作権申請書",null,null,null,null,null,null,null,null,null,"必要事項は記入されていますか？（原語表記・楽章・メドレー詳細など）",null,null,null,null,null,null,null,null,null,null,null,null,null,null,null,null,null,null,null,null,null,null,null,null,null,null,null,null,null,null,null,null,null,null,null,"□"]
[null,null,null,null,null,null,null,null,null,null,null,null,null,null,null,"大会開催日を手書きにてご記入いただけましたか？",null,null,null,null,null,null,null,null,null,null,null,null,null,null,null,null,null,null,null,null,null,null,null,null,null,null,null,null,null,null,null,null,null,null,null,"□"]
[null,null,null,null,null,null,null,null,null,null,null,null,null,null,null,"曲目・作曲者・編曲者・出版社の確認ができるページ\n（スコアの表紙）のコピーはありますか？",null,null,null,null,null,null,null,null,null,null,null,null,null,null,null,null,null,null,null,null,null,null,null,null,null,null,null,null,null,null,null,null,null,null,null,"□"]
[null,null,null,null,null,null,null,null,null,null,null,null,null,null,null,"申請書１枚＋スコアの表紙コピーが１枚、合計２枚ありますか？",null,null,null,null,null,null,null,null,null,null,null,null,null,null,null,null,null,null,null,null,null,null,null,null,null,null,null,null,null,null,null,null,null,null,null,"□"]
[null,null,null,"④",null,"アナウンス原稿",null,null,null,null,null,null,null,null,null,"必要事項が記入された原稿が１枚ありますか？　※特に読み仮名！",null,null,null,null,null,null,null,null,null,null,null,null,null,null,null,null,null,null,null,null,null,null,null,null,null,null,null,null,null,null,null,null,null,null,null,"□"]
[null,null,null,"⑤",null,"出演者名簿\n【wordファイル】",null,null,null,null,null,null,null,null,null,"氏名の誤字・脱字・印刷のない文字の手書き加筆はされていますか？",null,null,null,null,null,null,null,null,null,null,null,null,null,null,null,null,null,null,null,null,null,null,null,null,null,null,null,null,null,null,null,null,null,null,null,"□"]
[null,null,null,null,null,null,null,null,null,null,null,null,null,null,null,"原本１枚ありますか？＊プログラムには記載されませんが公的に出演が認められているかの確認です。",null,null,null,null,null,null,null,null,null,null,null,null,null,null,null,null,null,null,null,null,null,null,null,null,null,null,null,null,null,null,null,null,null,null,null,"□"]
[null,null,null,"⑥",null,"登録外部員名簿",null,null,null,null,null,null,null,null,null,"【該当団体のみ】生徒氏名の確認および捺印されたもの（原本＋コピー）の２枚ありますか？",null,null,null,null,null,null,null,null,null,null,null,null,null,null,null,null,null,null,null,null,null,null,null,null,null,null,null,null,null,null,null,null,null,null,null,"□"]
[null,null,null,"⑦",null,"振り込み請求書",null,null,null,null,null,null,null,null,null,"【必要団体のみ】団体名・金額の書かれた用紙が１枚ずつありますか？",null,null,null,null,null,null,null,null,null,null,null,null,null,null,null,null,null,null,null,null,null,null,null,null,null,null,null,null,null,null,null,null,null,null,null,"□"]
[null,null,null,"⑧",null,"最終確認",null,null,null,null,null,null,null,null,null,"①１枚　②２枚　③必要数　④１枚　⑤１枚　（⑥２枚　⑦１枚以上）の順番で並んでいますか？",null,null,null,null,null,null,null,null,null,null,null,null,null,null,null,null,null,null,null,null,null,null,null,null,null,null,null,null,null,null,null,null,null,null,null,"□"]
[]
[null,null,null,"納入金・借用物の確認"]
[null,null,null,"①",null,"参加費\n〔登録者数〕",null,null,null,null,null,null,null,null,null,"１人￥５００円",null,null,null,null,null,null,null,null,null,"×",null,null,{"$f":"団体データ!K32","v":0},null,null,null,null,"名",null,"＝",null,{"$f":"AC27*500","v":0},null,null,null,null,null,null,null,null,null,null,null,null,null,"□"]
[null,null,null,null,null,null,null,null,null,null,null,null,null,null,null,"公的援助生徒数",null,null,null,null,null,null,null,null,null,null,null,null,{"$f":"団体データ!AG32","v":0},null,null,null,null,"名",null,"吹奏楽祭・フェスティバルのみ",null,null,null,null,null,null,null,null,null,null,null,null,null,null,null,"□"]
[null,null,null,null,null,null,null,null,null,null,null,null,null,null,null,"最終的納入金額",null,null,null,null,null,null,null,null,null,null,null,null,{"$f":"AC27-AC28","v":0},null,null,null,null,"名",null,"＝",null,{"$f":"500*AC29","v":0},null,null,null,null,null,null,null,null,null,null,null,null,null,"□"]
[null,null,null,"②",null,"登録外部員",null,null,null,null,null,null,null,null,null,"１人￥５００円（パンフレット無し）",null,null,null,null,null,null,null,null,null,null,null,null,{"$f":"団体データ!AR32","v":0},null,null,null,null,"名",null,"＝",null,{"$f":"500*団体データ!AR32","v":0},{"$f":"IF(団体データ!#REF!=\"有り\",\"○\",\"\")","v":{"$error":"#REF!"}},{"$f":"IF(団体データ!#REF!=\"有り\",\"○\",\"\")","v":{"$error":"#REF!"}},{"$f":"IF(団体データ!#REF!=\"有り\",\"○\",\"\")","v":{"$error":"#REF!"}},{"$f":"IF(団体データ!#REF!=\"有り\",\"○\",\"\")","v":{"$error":"#REF!"}},{"$f":"IF(団体データ!#REF!=\"有り\",\"○\",\"\")","v":{"$error":"#REF!"}},{"$f":"IF(団体データ!#REF!=\"有り\",\"○\",\"\")","v":{"$error":"#REF!"}},{"$f":"IF(団体データ!#REF!=\"有り\",\"○\",\"\")","v":{"$error":"#REF!"}},{"$f":"IF(団体データ!#REF!=\"有り\",\"○\",\"\")","v":{"$error":"#REF!"}},{"$f":"IF(団体データ!#REF!=\"有り\",\"○\",\"\")","v":{"$error":"#REF!"}},{"$f":"IF(団体データ!#REF!=\"有り\",\"○\",\"\")","v":{"$error":"#REF!"}},{"$f":"IF(団体データ!#REF!=\"有り\",\"○\",\"\")","v":{"$error":"#REF!"}},{"$f":"IF(団体データ!#REF!=\"有り\",\"○\",\"\")","v":{"$error":"#REF!"}},{"$f":"IF(団体データ!#REF!=\"有り\",\"○\",\"\")","v":{"$error":"#REF!"}},"□"]
[null,null,null,"③",null,"著作権料",null,null,null,null,null,null,null,null,null,"事業ごと固定金額（祭：1,500　コン：1,300　アン：700×ﾁｰﾑ　フェス：1,200）",null,null,null,null,null,null,null,null,null,null,null,null,null,null,null,null,null,null,null,null,null,1500,null,null,null,null,null,null,null,null,null,null,null,null,null,"□"]
[null,null,null,"④",null,"ピアノ使用料",null,null,null,null,null,null,null,null,null,"一律固定金額(\\3,000)",null,null,null,null,null,null,null,null,null,null,null,null,null,null,null,null,null,null,null,null,null,{"$f":"IF(団体データ!K39=\"有り\",3000,0)","v":0},{"$f":"IF(団体データ!#REF!=\"有り\",\"○\",\"\")","v":{"$error":"#REF!"}},{"$f":"IF(団体データ!#REF!=\"有り\",\"○\",\"\")","v":{"$error":"#REF!"}},{"$f":"IF(団体データ!#REF!=\"有り\",\"○\",\"\")","v":{"$error":"#REF!"}},{"$f":"IF(団体データ!#REF!=\"有り\",\"○\",\"\")","v":{"$error":"#REF!"}},{"$f":"IF(団体データ!#REF!=\"有り\",\"○\",\"\")","v":{"$error":"#REF!"}},{"$f":"IF(団体データ!#REF!=\"有り\",\"○\",\"\")","v":{"$error":"#REF!"}},{"$f":"IF(団体データ!#REF!=\"有り\",\"○\",\"\")","v":{"$error":"#REF!"}},{"$f":"IF(団体データ!#REF!=\"有り\",\"○\",\"\")","v":{"$error":"#REF!"}},{"$f":"IF(団体データ!#REF!=\"有り\",\"○\",\"\")","v":{"$error":"#REF!"}},{"$f":"IF(団体データ!#REF!=\"有り\",\"○\",\"\")","v":{"$error":"#REF!"}},{"$f":"IF(団体データ!#REF!=\"有り\",\"○\",\"\")","v":{"$error":"#REF!"}},{"$f":"IF(団体データ!#REF!=\"有り\",\"○\",\"\")","v":{"$error":"#REF!"}},{"$f":"IF(団体データ!#REF!=\"有り\",\"○\",\"\")","v":{"$error":"#REF!"}},"□"]
[null,null,null,"⑤",null,"プログラム購入希望数",null,null,null,null,null,null,null,null,null,"１冊￥５００円",null,null,null,null,null,null,null,null,null,"×",null,null,{"$f":"団体データ!K33","v":0},null,null,null,null,"冊",null,"＝",null,{"$f":"500*団体データ!AR35","v":0},{"$f":"IF(団体データ!#REF!=\"有り\",\"○\",\"\")","v":{"$error":"#REF!"}},{"$f":"IF(団体データ!#REF!=\"有り\",\"○\",\"\")","v":{"$error":"#REF!"}},{"$f":"IF(団体データ!#REF!=\"有り\",\"○\",\"\")","v":{"$error":"#REF!"}},{"$f":"IF(団体データ!#REF!=\"有り\",\"○\",\"\")","v":{"$error":"#REF!"}},{"$f":"IF(団体データ!#REF!=\"有り\",\"○\",\"\")","v":{"$error":"#REF!"}},{"$f":"IF(団体データ!#REF!=\"有り\",\"○\",\"\")","v":{"$error":"#REF!"}},{"$f":"IF(団体データ!#REF!=\"有り\",\"○\",\"\")","v":{"$error":"#REF!"}},{"$f":"IF(団体データ!#REF!=\"有り\",\"○\",\"\")","v":{"$error":"#REF!"}},{"$f":"IF(団体データ!#REF!=\"有り\",\"○\",\"\")","v":{"$error":"#REF!"}},{"$f":"IF(団体データ!#REF!=\"有り\",\"○\",\"\")","v":{"$error":"#REF!"}},{"$f":"IF(団体データ!#REF!=\"有り\",\"○\",\"\")","v":{"$error":"#REF!"}},{"$f":"IF(団体データ!#REF!=\"有り\",\"○\",\"\")","v":{"$error":"#REF!"}},{"$f":"IF(団体データ!#REF!=\"有り\",\"○\",\"\")","v":{"$error":"#REF!"}},"□"]
[null,null,null,"⑥",null,"合計金額",null,null,null,null,null,null,null,null,null,"参加費＋登録外部員＋著作権＋ピアノ使用料＋プログラム",null,null,null,null,null,null,null,null,null,null,null,null,null,null,null,null,null,null,null,null,null,{"$f":"SUM(AL29:AL32)","v":1500},{"$f":"IF(団体データ!#REF!=\"有り\",\"○\",\"\")","v":{"$error":"#REF!"}},{"$f":"IF(団体データ!#REF!=\"有り\",\"○\",\"\")","v":{"$error":"#REF!"}},{"$f":"IF(団体データ!#REF!=\"有り\",\"○\",\"\")","v":{"$error":"#REF!"}},{"$f":"IF(団体データ!#REF!=\"有り\",\"○\",\"\")","v":{"$error":"#REF!"}},{"$f":"IF(団体データ!#REF!=\"有り\",\"○\",\"\")","v":{"$error":"#REF!"}},{"$f":"IF(団体データ!#REF!=\"有り\",\"○\",\"\")","v":{"$error":"#REF!"}},{"$f":"IF(団体データ!#REF!=\"有り\",\"○\",\"\")","v":{"$error":"#REF!"}},{"$f":"IF(団体データ!#REF!=\"有り\",\"○\",\"\")","v":{"$error":"#REF!"}},{"$f":"IF(団体データ!#REF!=\"有り\",\"○\",\"\")","v":{"$error":"#REF!"}},{"$f":"IF(団体データ!#REF!=\"有り\",\"○\",\"\")","v":{"$error":"#REF!"}},{"$f":"IF(団体データ!#REF!=\"有り\",\"○\",\"\")","v":{"$error":"#REF!"}},{"$f":"IF(団体データ!#REF!=\"有り\",\"○\",\"\")","v":{"$error":"#REF!"}},{"$f":"IF(団体データ!#REF!=\"有り\",\"○\",\"\")","v":{"$error":"#REF!"}},"□"]
[null,null,null,"⑦",null,"最終確認",null,null,null,null,null,null,null,null,null,"金額にお間違いはありませんか？",null,null,null,null,null,null,null,null,null,null,null,null,"ない→レ点にてチェック",null,null,null,null,null,null,null,null,null,null,null,null,null,null,null,null,null,null,null,null,null,null,"□"]
[null,null,null,null,null,null,null,null,null,null,null,null,null,null,null,null,null,null,null,null,null,null,null,null,null,null,null,null,"ある→二重線で消して正しい金額に訂正",null,null,null,null,null,null,null,null,null,null,null,null,null,null,null,null,null,null,null,null,null,null,"□"]
[null,null,null,"⑧",null,"振り込み請求書",null,null,null,null,null,null,null,null,null,"吹奏楽連盟からの請求書が必要ですか？",null,null,null,null,null,null,null,null,null,null,null,null,null,null,null,null,null,null,null,null,null,"いいえ，必要ありません。",null,null,null,null,null,null,null,null,null,null,null,null,null,"□"]
[null,null,null,null,null,null,null,null,null,null,null,null,null,null,null,null,null,null,null,null,null,null,null,null,null,null,null,null,null,null,null,null,null,null,null,null,null,"はい，持参しました。",null,null,null,null,null,null,null,null,null,null,null,null,null,"□"]
[null,null,null,null,null,null,null,null,null,null,null,null,null,null,null,null,null,null,null,null,null,null,null,null,null,null,null,null,null,null,null,null,null,null,null,null,null,"はい，しかし忘れました。",null,null,null,null,null,null,null,null,null,null,null,null,null,"□"]
[null,null,null,"⑨",null,"借用物",null,null,null,null,null,null,null,null,null,"打楽器",null,null,null,null,null,{"$f":"IF(団体データ!K40=\"有り\",\"○\",\"\")","v":"○"},null,null,"ピアノ",null,null,null,null,null,{"$f":"IF(団体データ!K39=\"有り\",\"○\",\"\")","v":""},null,null,"ピアノ椅子",null,null,null,null,null,{"$f":"IF(団体データ!K41=\"有り\",\"○\",\"\")","v":""},null,null,"マイク",null,null,null,null,null,{"$f":"IF(団体データ!K42=\"有り\",\"○\",\"\")","v":""},null,null,"□"]
[null,null,null,"事務局への連絡"]
[null,null,null,null,"吹奏楽祭の出演日に関して・・・"]
[null,null,null,null,null,null,"□",null,"土曜日に希望する",null,null,null,null,null,null,null,null,null,null,null,null,null,"□",null,"日曜日に希望する",null,null,null,null,null,null,null,null,null,null,null,null,null,"□",null,"どちらでもよい"]
[]
[null,null,null,null,null,"希望理由をご記入ください"]

{"sheet":"参加申込書","index":7,"n_rows":56,"n_cols":58,"rows_kept":56,"cut":false,"hidden":false,"merged":[[54,15,54,18],[54,19,54,54],[55,15,55,29],[55,30,55,31],[55,32,55,50],[52,15,52,18],[52,19,52,54],[53,15,53,21],[53,22,53,23],[53,24,53,29],[53,30,53,31],[53,32,53,50],[50,7,50,14],[50,15,50,32],[50,33,50,34],[51,7,51,14],[51,15,51,21],[51,22,51,23],[51,24,51,29],[51,30,51,31],[51,32,51,50],[46,2,46,58],[48,7,48,14],[48,15,48,42],[49,7,49,14],[49,15,49,42],[49,43,49,45],[43,2,43,58],[44,22,44,23],[44,24,44,26],[44,27,44,33],[44,34,44,35],[44,36,44,38],[44,39,44,46],[44,47,44,48],[47,57,47,58],[47,53,47,54],[47,51,47,52],[47,49,47,50],[47,46,47,48],[41,2,41,58],[42,3,42,20],[42,22,42,23],[42,24,42,26],[42,27,42,33],[42,34,42,35],[42,36,42,38],[42,39,42,46],[42,47,42,48],[34,74,34,75],[37,9,37,16],[37,25,37,32],[37,41,37,48],[38,7,40,9],[38,10,40,16],[38,23,40,25],[38,26,40,32],[38,39,40,41],[38,42,40,48],[34,33,40,38],[34,39,36,41],[34,42,36,48],[34,49,40,54],[34,55,40,58],[34,67,34,73],[38,67,38,74],[40,67,40,70],[40,74,40,75],[34,2,40,6],[34,7,36,9],[34,10,36,16],[34,17,40,22],[34,23,36,25],[34,26,36,32],[32,32,32,35],[32,36,32,58],[33,6,33,9],[33,10,33,25],[33,26,33,32],[33,33,33,58],[29,2,33,5],[29,6,31,11],[29,12,31,49],[29,50,29,58],[30,50,31,52],[30,53,31,54],[30,55,31,56],[30,57,31,58],[32,6,32,9],[32,10,32,31],[27,32,27,35],[27,36,27,58],[28,6,28,9],[28,10,28,25],[28,26,28,32],[28,33,28,58],[24,2,28,5],[24,6,26,11],[24,12,26,49],[24,50,24,58],[25,50,26,52],[25,53,26,54],[25,55,26,56],[25,57,26,58],[27,6,27,9],[27,10,27,31],[22,32,22,35],[22,36,22,58],[23,6,23,9],[23,10,23,25],[23,26,23,32],[23,33,23,58],[19,2,23,5],[19,6,21,11],[19,12,21,49],[19,50,19,58],[20,50,21,52],[20,53,21,54],[20,55,21,56],[20,57,21,58],[22,6,22,9],[22,10,22,31],[17,32,17,35],[17,36,17,58],[18,6,18,9],[18,10,18,25],[18,26,18,32],[18,33,18,58],[14,2,18,5],[14,6,16,11],[14,12,16,49],[14,50,14,58],[15,50,16,52],[15,53,16,54],[15,55,16,56],[15,57,16,58],[17,6,17,9],[17,10,17,31],[1,1,1,59],[12,32,12,35],[12,36,12,58],[13,6,13,9],[13,10,13,25],[13,26,13,32],[13,33,13,58],[9,2,13,5],[9,6,11,11],[9,12,11,49],[9,50,9,58],[10,50,11,52],[10,53,11,54],[10,55,11,56],[10,57,11,58],[12,6,12,9],[12,10,12,31],[3,2,3,58],[4,2,4,58],[5,4,5,28],[5,44,5,49],[5,50,5,58],[8,2,8,5],[8,6,8,24],[8,25,8,43],[8,44,8,49],[8,50,8,55],[8,56,8,58],[6,2,6,5],[6,6,6,43],[6,44,7,49],[6,50,7,58],[7,2,7,5],[7,6,7,43]]}
[]
[null,"このシートに、入力する必要はありません。入力シートに入力すると、自動的に作成されます。このまま印刷できます。"]
[]
[]
[null,null,{"$f":"\"第 \"&YEAR(TODAY())-1958&\" 回　筑豊吹奏楽祭　参加申込書　兼　プログラム原稿\"","v":"第 65 回　筑豊吹奏楽祭　参加申込書　兼　プログラム原稿"}]
[null,null,null,null,"※原本及びコピー1部を提出してください",null,null,null,null,null,null,null,null,null,null,null,null,null,null,null,null,null,null,null,null,null,null,null,null,null,null,null,null,null,null,null,null,null,null,null,null,null,null,null,"出演日",null,null,null,null,null,{"$f":"団体データ!K29","v":0}]
[null,null,"ﾌﾘｶﾞﾅ",null,null,null,{"$f":"団体データ!K14","v":""},null,null,null,null,null,null,null,null,null,null,null,null,null,null,null,null,null,null,null,null,null,null,null,null,null,null,null,null,null,null,null,null,null,null,null,null,null,"合同団体",null,null,null,null,null,{"$f":"団体データ!Z31","v":0}]
[null,null,"団体名",null,null,null,{"$f":"団体データ!K15","v":0}]
[null,null,"指揮者",null,null,null,{"$f":"団体データ!P35","v":0},null,null,null,null,null,null,null,null,null,null,null,null,null,null,null,null,null,null,{"$f":"団体データ!P37","v":0},null,null,null,null,null,null,null,null,null,null,null,null,null,null,null,null,null,null,"演奏者",null,null,null,null,null,{"$f":"団体データ!V32","v":0},null,null,null,null,null,"名"]
[null,null,1,null,null,null,"曲名",null,null,null,null,null,{"$f":"プログラムデータ!S33","v":0},null,null,null,null,null,null,null,null,null,null,null,null,null,null,null,null,null,null,null,null,null,null,null,null,null,null,null,null,null,null,null,null,null,null,null,null,null,"演奏時間"]
[null,null,null,null,null,null,null,null,null,null,null,null,null,null,null,null,null,null,null,null,null,null,null,null,null,null,null,null,null,null,null,null,null,null,null,null,null,null,null,null,null,null,null,null,null,null,null,null,null,null,{"$f":"プログラムデータ!AV40","v":0},null,null,"分",null,{"$f":"プログラムデータ!BA40","v":0},null,"秒"]
[]
[null,null,null,null,null,null,"作曲者",null,null,null,{"$f":"プログラムデータ!S35","v":0},null,null,null,null,null,null,null,null,null,null,null,null,null,null,null,null,null,null,null,null,null,"編曲者",null,null,null,{"$f":"プログラムデータ!S37","v":0}]
[null,null,null,null,null,null,"出版社",null,null,null,{"$f":"プログラムデータ!S39","v":0},null,null,null,null,null,null,null,null,null,null,null,null,null,null,null,"編曲手続きは",null,null,null,null,null,null,{"$f":"プログラムデータ!S40","v":"※選択してください。"}]
[null,null,2,null,null,null,"曲名",null,null,null,null,null,{"$f":"プログラムデータ!S42","v":0},null,null,null,null,null,null,null,null,null,null,null,null,null,null,null,null,null,null,null,null,null,null,null,null,null,null,null,null,null,null,null,null,null,null,null,null,null,"演奏時間"]
[null,null,null,null,null,null,null,null,null,null,null,null,null,null,null,null,null,null,null,null,null,null,null,null,null,null,null,null,null,null,null,null,null,null,null,null,null,null,null,null,null,null,null,null,null,null,null,null,null,null,{"$f":"プログラムデータ!AV49","v":0},null,null,"分",null,{"$f":"プログラムデータ!BA49","v":0},null,"秒"]
[]
[null,null,null,null,null,null,"作曲者",null,null,null,{"$f":"プログラムデータ!S44","v":0},null,null,null,null,null,null,null,null,null,null,null,null,null,null,null,null,null,null,null,null,null,"編曲者",null,null,null,{"$f":"プログラムデータ!S46","v":0}]
[null,null,null,null,null,null,"出版社",null,null,null,{"$f":"プログラムデータ!S48","v":0},null,null,null,null,null,null,null,null,null,null,null,null,null,null,null,"編曲手続きは",null,null,null,null,null,null,{"$f":"プログラムデータ!S49","v":"※選択してください。"}]
[null,null,3,null,null,null,"曲名",null,null,null,null,null,{"$f":"プログラムデータ!S51","v":0},null,null,null,null,null,null,null,null,null,null,null,null,null,null,null,null,null,null,null,null,null,null,null,null,null,null,null,null,null,null,null,null,null,null,null,null,null,"演奏時間"]
[null,null,null,null,null,null,null,null,null,null,null,null,null,null,null,null,null,null,null,null,null,null,null,null,null,null,null,null,null,null,null,null,null,null,null,null,null,null,null,null,null,null,null,null,null,null,null,null,null,null,{"$f":"プログラムデータ!AV58","v":0},null,null,"分",null,{"$f":"プログラムデータ!BA58","v":0},null,"秒"]
[]
[null,null,null,null,null,null,"作曲者",null,null,null,{"$f":"プログラムデータ!S53","v":0},null,null,null,null,null,null,null,null,null,null,null,null,null,null,null,null,null,null,null,null,null,"編曲者",null,null,null,{"$f":"プログラムデータ!S55","v":0}]
[null,null,null,null,null,null,"出版社",null,null,null,{"$f":"プログラムデータ!S57","v":0},null,null,null,null,null,null,null,null,null,null,null,null,null,null,null,"編曲手続きは",null,null,null,null,null,null,{"$f":"プログラムデータ!S58","v":"※選択してください。"}]
[null,null,4,null,null,null,"曲名",null,null,null,null,null,{"$f":"プログラムデータ!S60","v":0},null,null,null,null,null,null,null,null,null,null,null,null,null,null,null,null,null,null,null,null,null,null,null,null,null,null,null,null,null,null,null,null,null,null,null,null,null,"演奏時間"]
[null,null,null,null,null,null,null,null,null,null,null,null,null,null,null,null,null,null,null,null,null,null,null,null,null,null,null,null,null,null,null,null,null,null,null,null,null,null,null,null,null,null,null,null,null,null,null,null,null,null,{"$f":"プログラムデータ!AV67","v":0},null,null,"分",null,{"$f":"プログラムデータ!BA67","v":0},null,"秒"]
[]
[null,null,null,null,null,null,"作曲者",null,null,null,{"$f":"プログラムデータ!S62","v":0},null,null,null,null,null,null,null,null,null,null,null,null,null,null,null,null,null,null,null,null,null,"編曲者",null,null,null,{"$f":"プログラムデータ!S64","v":0}]
[null,null,null,null,null,null,"出版社",null,null,null,{"$f":"プログラムデータ!S66","v":0},null,null,null,null,null,null,null,null,null,null,null,null,null,null,null,"編曲手続きは",null,null,null,null,null,null,{"$f":"プログラムデータ!S67","v":"※選択してください。"}]
[null,null,5,null,null,null,"曲名",null,null,null,null,null,{"$f":"プログラムデータ!S69","v":0},null,null,null,null,null,null,null,null,null,null,null,null,null,null,null,null,null,null,null,null,null,null,null,null,null,null,null,null,null,null,null,null,null,null,null,null,null,"演奏時間"]
[null,null,null,null,null,null,null,null,null,null,null,null,null,null,null,null,null,null,null,null,null,null,null,null,null,null,null,null,null,null,null,null,null,null,null,null,null,null,null,null,null,null,null,null,null,null,null,null,null,null,{"$f":"プログラムデータ!AV76","v":0},null,null,"分",null,{"$f":"プログラムデータ!BA76","v":0},null,"秒"]
[]
[null,null,null,null,null,null,"作曲者",null,null,null,{"$f":"プログラムデータ!S71","v":0},null,null,null,null,null,null,null,null,null,null,null,null,null,null,null,null,null,null,null,null,null,"編曲者",null,null,null,{"$f":"プログラムデータ!S73","v":0}]
[null,null,null,null,null,null,"出版社",null,null,null,{"$f":"プログラムデータ!S75","v":0},null,null,null,null,null,null,null,null,null,null,null,null,null,null,null,"編曲手続きは",null,null,null,null,null,null,{"$f":"プログラムデータ!S76","v":"※選択してください。"}]
[null,null,"ピアノ\n使用",null,null,null,null,{"$f":"IF(団体データ!K39=\"有り\",\"○\",\"\")","v":""},null,null,"使用する",null,null,null,null,null,null,"借用\n打楽器\n使用",null,null,null,null,null,{"$f":"IF(団体データ!K40=\"有り\",\"○\",\"\")","v":"○"},null,null,"使用する",null,null,null,null,null,null,"マイク\n使用",null,null,null,null,null,{"$f":"IF(団体データ!K42=\"有り\",\"○\",\"\")","v":""},null,null,"使用する",null,null,null,null,null,null,"ピアノ\nいす",null,null,null,null,null,{"$f":"団体データ!W41","v":0}]
[]
[]
[null,null,null,null,null,null,null,null,null,"・",null,null,null,null,null,null,null,null,null,null,null,null,null,null,null,"・",null,null,null,null,null,null,null,null,null,null,null,null,null,null,null,"・"]
[null,null,null,null,null,null,null,{"$f":"IF(団体データ!K39=\"無し\",\"○\",\"\")","v":""},null,null,"使用しない",null,null,null,null,null,null,null,null,null,null,null,null,{"$f":"IF(団体データ!K40=\"無し\",\"○\",\"\")","v":""},null,null,"使用しない",null,null,null,null,null,null,null,null,null,null,null,null,{"$f":"IF(団体データ!K42=\"無し\",\"○\",\"\")","v":""},null,null,"使用しない"]
[]
[]
[null,null,"＊筑豊吹奏楽祭における当団体の演奏について、吹奏楽連盟指定の各社により、録音・写真撮影・ビデオ"]
[null,null,null,"収録・販売されることを",null,null,null,null,null,null,null,null,null,null,null,null,null,null,null,null,null,null,"〔",null,{"$f":"IF(団体データ!K46=\"承諾します\",\"ﾚ\",\"\")","v":"ﾚ"},null,null,"承諾します",null,null,null,null,null,null,"・",null,{"$f":"IF(団体データ!K46=\"承諾できません\",\"ﾚ\",\"\")","v":""},null,null,"承諾しません",null,null,null,null,null,null,null,"〕"]
[null,null,"＊筑豊吹奏楽祭プログラムに団体名・指揮者名・出演者名が記載されることを"]
[null,null,null,null,null,null,null,null,null,null,null,null,null,null,null,null,null,null,null,null,null,null,"〔",null,{"$f":"IF(団体データ!K48=\"承諾します\",\"ﾚ\",\"\")","v":"ﾚ"},null,null,"承諾します",null,null,null,null,null,null,"・",null,{"$f":"IF(団体データ!K48=\"承諾できません\",\"ﾚ\",\"\")","v":""},null,null,"承諾しません",null,null,null,null,null,null,null,"〕"]
[]
[null,null,"上記内容により、出場申込みを致します。"]
[null,null,null,null,null,null,null,null,null,null,null,null,null,null,null,null,null,null,null,null,null,null,null,null,null,null,null,null,null,null,null,null,null,null,null,null,null,null,null,null,null,null,null,null,null,null,{"$f":"団体データ!K12","v":"令和"},null,null,{"$f":"団体データ!N12","v":5},null,"年",null,{"$f":"団体データ!S12","v":5},null,"月",{"$f":"団体データ!X12","v":0},"日"]
[null,null,null,null,null,null,null,"団体名",null,null,null,null,null,null,null,{"$f":"団体データ!K15","v":0}]
[null,null,null,null,null,null,null,"団体所属長名",null,null,null,null,null,null,null,{"$f":"団体データ!K16","v":0},null,null,null,null,null,null,null,null,null,null,null,null,null,null,null,null,null,null,null,null,null,null,null,null,null,null,null,"職印"]
[null,null,null,null,null,null,null,"責任者名",null,null,null,null,null,null,null,{"$f":"団体データ!K23","v":0},null,null,null,null,null,null,null,null,null,null,null,null,null,null,null,null,null,"印"]
[null,null,null,null,null,null,null,"連絡先",null,null,null,null,null,null,null,"（団体所在地）",null,null,null,null,null,null,"〒",null,{"$f":"団体データ!P17","v":0},null,null,null,null,null,"TEL",null,{"$f":"団体データ!P19","v":0}]
[null,null,null,null,null,null,null,null,null,null,null,null,null,null,null,"住　所",null,null,null,{"$f":"団体データ!P18","v":0}]
[null,null,null,null,null,null,null,null,null,null,null,null,null,null,null,"（責任者自宅）",null,null,null,null,null,null,"〒",null,{"$f":"団体データ!P24","v":0},null,null,null,null,null,"TEL",null,{"$f":"団体データ!P26","v":0}]
[null,null,null,null,null,null,null,null,null,null,null,null,null,null,null,"住　所",null,null,null,{"$f":"団体データ!P25","v":0}]
[null,null,null,null,null,null,null,null,null,null,null,null,null,null,null,"（緊急連絡先・携帯電話など）",null,null,null,null,null,null,null,null,null,null,null,null,null,null,"TEL",null,{"$f":"団体データ!P27","v":0}]

{"sheet":"著作権申請","index":8,"n_rows":91,"n_cols":39,"rows_kept":91,"cut":false,"hidden":false,"merged":[[90,10,90,11],[90,12,90,14],[90,19,90,22],[88,3,89,8],[88,9,88,17],[88,19,88,22],[89,10,89,11],[89,19,89,22],[89,31,89,39],[86,40,87,40],[87,3,87,7],[87,8,87,10],[87,11,87,16],[87,20,87,21],[86,31,87,31],[86,32,87,32],[86,33,87,33],[86,34,87,34],[86,35,87,35],[86,36,87,36],[86,25,87,25],[86,26,87,26],[86,27,87,27],[86,28,87,28],[86,29,87,29],[86,30,87,30],[86,2,87,2],[86,3,86,7],[86,8,86,10],[86,11,86,16],[86,17,87,19],[86,22,87,23],[84,37,85,37],[84,38,85,38],[84,39,85,39],[84,2,85,2],[86,37,87,37],[86,38,87,38],[86,39,87,39],[84,40,85,40],[85,3,85,7],[85,8,85,10],[85,11,85,16],[85,20,85,21],[84,31,85,31],[84,32,85,32],[84,33,85,33],[84,34,85,34],[84,35,85,35],[84,36,85,36],[84,25,85,25],[84,26,85,26],[84,27,85,27],[84,28,85,28],[84,29,85,29],[84,30,85,30],[84,3,84,7],[84,8,84,10],[84,11,84,16],[84,17,85,19],[84,22,85,23],[82,40,83,40],[83,3,83,7],[83,8,83,10],[83,11,83,16],[83,20,83,21],[82,31,83,31],[82,32,83,32],[82,33,83,33],[82,34,83,34],[82,35,83,35],[82,36,83,36],[82,25,83,25],[82,26,83,26],[82,27,83,27],[82,28,83,28],[82,29,83,29],[82,30,83,30],[82,2,83,2],[82,3,82,7],[82,8,82,10],[82,11,82,16],[82,17,83,19],[82,22,83,23],[80,37,81,37],[80,38,81,38],[80,39,81,39],[80,2,81,2],[82,37,83,37],[82,38,83,38],[82,39,83,39],[80,40,81,40],[81,3,81,7],[81,8,81,10],[81,11,81,16],[81,20,81,21],[80,31,81,31],[80,32,81,32],[80,33,81,33],[80,34,81,34],[80,35,81,35],[80,36,81,36],[80,25,81,25],[80,26,81,26],[80,27,81,27],[80,28,81,28],[80,29,81,29],[80,30,81,30],[80,3,80,7],[80,8,80,10],[80,11,80,16],[80,17,81,19],[80,22,81,23],[78,40,79,40],[79,3,79,7],[79,8,79,10],[79,11,79,16],[79,20,79,21],[78,31,79,31],[78,32,79,32],[78,33,79,33],[78,34,79,34],[78,35,79,35],[78,36,79,36],[78,25,79,25],[78,26,79,26],[78,27,79,27],[78,28,79,28],[78,29,79,29],[78,30,79,30],[78,2,79,2],[78,3,78,7],[78,8,78,10],[78,11,78,16],[78,17,79,19],[78,22,79,23],[76,37,77,37],[76,38,77,38],[76,39,77,39],[76,2,77,2],[78,37,79,37],[78,38,79,38],[78,39,79,39],[76,40,77,40],[77,3,77,7],[77,8,77,10],[77,11,77,16],[77,20,77,21],[76,31,77,31],[76,32,77,32],[76,33,77,33],[76,34,77,34],[76,35,77,35],[76,36,77,36],[76,25,77,25],[76,26,77,26],[76,27,77,27],[76,28,77,28],[76,29,77,29],[76,30,77,30],[76,3,76,7],[76,8,76,10],[76,11,76,16],[76,17,77,19],[76,22,77,23],[74,40,75,40],[75,3,75,7],[75,8,75,10],[75,11,75,16],[75,20,75,21],[74,31,75,31],[74,32,75,32],[74,33,75,33],[74,34,75,34],[74,35,75,35],[74,36,75,36],[74,25,75,25],[74,26,75,26],[74,27,75,27],[74,28,75,28],[74,29,75,29],[74,30,75,30],[74,2,75,2],[74,3,74,7],[74,8,74,10],[74,11,74,16],[74,17,75,19],[74,22,75,23],[72,37,73,37],[72,38,73,38],[72,39,73,39],[72,2,73,2],[74,37,75,37],[74,38,75,38],[74,39,75,39],[72,40,73,40],[73,3,73,7],[73,8,73,10],[73,11,73,16],[73,20,73,21],[72,31,73,31],[72,32,73,32],[72,33,73,33],[72,34,73,34],[72,35,73,35],[72,36,73,36],[72,25,73,25],[72,26,73,26],[72,27,73,27],[72,28,73,28],[72,29,73,29],[72,30,73,30],[72,3,72,7],[72,8,72,10],[72,11,72,16],[72,17,73,19],[72,22,73,23],[70,39,71,39],[70,40,71,40],[71,3,71,7],[71,8,71,10],[71,11,71,16],[71,20,71,21],[70,31,71,31],[70,32,71,32],[70,33,71,33],[70,34,71,34],[70,35,71,35],[70,36,71,36],[70,25,71,25],[70,26,71,26],[70,27,71,27],[70,28,71,28],[70,29,71,29],[70,30,71,30],[70,2,71,2],[70,3,70,7],[70,8,70,10],[70,11,70,16],[70,17,71,19],[70,22,71,23],[68,36,69,36],[68,37,69,37],[68,38,69,38],[70,37,71,37],[70,38,71,38],[68,32,69,32],[68,33,69,33],[68,34,69,34],[68,35,69,35],[68,22,69,23],[68,25,69,25],[68,26,69,26],[68,27,69,27],[68,28,69,28],[68,29,69,29],[66,24,67,24],[66,25,66,30],[66,31,67,38],[66,40,67,40],[67,25,67,30],[68,2,69,2],[68,3,68,7],[68,8,68,10],[68,11,68,16],[68,17,69,19],[66,2,67,7],[66,8,67,10],[66,11,67,16],[66,17,67,19],[66,20,67,21],[66,22,67,23],[68,39,69,39],[68,40,69,40],[69,3,69,7],[69,8,69,10],[69,11,69,16],[69,20,69,21],[68,30,69,30],[68,31,69,31],[57,18,58,39],[58,2,60,3],[58,4,60,9],[58,10,60,10],[58,11,60,17],[61,2,64,3],[61,4,64,9],[61,10,64,10],[61,11,64,17],[63,18,63,40],[54,2,56,3],[54,4,56,6],[54,7,56,7],[54,8,56,8],[54,9,56,9],[54,10,56,17],[51,25,52,29],[51,30,54,30],[51,31,56,39],[53,18,54,20],[53,21,54,24],[53,25,56,29],[55,18,56,20],[55,21,56,24],[55,30,56,30],[51,2,53,3],[51,4,53,8],[51,9,53,9],[51,10,53,17],[51,18,52,20],[51,21,52,24],[46,10,46,11],[46,12,46,14],[46,19,46,22],[47,2,48,3],[48,5,48,8],[49,2,49,4],[49,5,50,5],[49,6,50,8],[49,9,50,40],[44,3,45,8],[44,9,44,17],[44,19,44,22],[45,10,45,11],[45,19,45,22],[45,31,45,39],[42,37,43,37],[42,38,43,38],[42,39,43,39],[42,40,43,40],[43,3,43,7],[43,8,43,10],[43,11,43,16],[43,20,43,21],[42,31,43,31],[42,32,43,32],[42,33,43,33],[42,34,43,34],[42,35,43,35],[42,36,43,36],[42,25,43,25],[42,26,43,26],[42,27,43,27],[42,28,43,28],[42,29,43,29],[42,30,43,30],[42,2,43,2],[42,3,42,7],[42,8,42,10],[42,11,42,16],[42,17,43,19],[42,22,43,23],[40,37,41,37],[40,38,41,38],[40,39,41,39],[40,2,41,2],[40,40,41,40],[41,3,41,7],[41,8,41,10],[41,11,41,16],[41,20,41,21],[40,31,41,31],[40,32,41,32],[40,33,41,33],[40,34,41,34],[40,35,41,35],[40,36,41,36],[40,25,41,25],[40,26,41,26],[40,27,41,27],[40,28,41,28],[40,29,41,29],[40,30,41,30],[40,3,40,7],[40,8,40,10],[40,11,40,16],[40,17,41,19],[40,22,41,23],[38,40,39,40],[39,3,39,7],[39,8,39,10],[39,11,39,16],[39,20,39,21],[38,31,39,31],[38,32,39,32],[38,33,39,33],[38,34,39,34],[38,35,39,35],[38,36,39,36],[38,25,39,25],[38,26,39,26],[38,27,39,27],[38,28,39,28],[38,29,39,29],[38,30,39,30],[38,2,39,2],[38,3,38,7],[38,8,38,10],[38,11,38,16],[38,17,39,19],[38,22,39,23],[36,37,37,37],[36,38,37,38],[36,39,37,39],[36,2,37,2],[38,37,39,37],[38,38,39,38],[38,39,39,39],[36,40,37,40],[37,3,37,7],[37,8,37,10],[37,11,37,16],[37,20,37,21],[36,31,37,31],[36,32,37,32],[36,33,37,33],[36,34,37,34],[36,35,37,35],[36,36,37,36],[36,25,37,25],[36,26,37,26],[36,27,37,27],[36,28,37,28],[36,29,37,29],[36,30,37,30],[36,3,36,7],[36,8,36,10],[36,11,36,16],[36,17,37,19],[36,22,37,23],[34,40,35,40],[35,3,35,7],[35,8,35,10],[35,11,35,16],[35,20,35,21],[34,31,35,31],[34,32,35,32],[34,33,35,33],[34,34,35,34],[34,35,35,35],[34,36,35,36],[34,25,35,25],[34,26,35,26],[34,27,35,27],[34,28,35,28],[34,29,35,29],[34,30,35,30],[34,2,35,2],[34,3,34,7],[34,8,34,10],[34,11,34,16],[34,17,35,19],[34,22,35,23],[32,37,33,37],[32,38,33,38],[32,39,33,39],[32,2,33,2],[34,37,35,37],[34,38,35,38],[34,39,35,39],[32,40,33,40],[33,3,33,7],[33,8,33,10],[33,11,33,16],[33,20,33,21],[32,31,33,31],[32,32,33,32],[32,33,33,33],[32,34,33,34],[32,35,33,35],[32,36,33,36],[32,25,33,25],[32,26,33,26],[32,27,33,27],[32,28,33,28],[32,29,33,29],[32,30,33,30],[32,3,32,7],[32,8,32,10],[32,11,32,16],[32,17,33,19],[32,22,33,23],[30,40,31,40],[31,3,31,7],[31,8,31,10],[31,11,31,16],[31,20,31,21],[30,31,31,31],[30,32,31,32],[30,33,31,33],[30,34,31,34],[30,35,31,35],[30,36,31,36],[30,25,31,25],[30,26,31,26],[30,27,31,27],[30,28,31,28],[30,29,31,29],[30,30,31,30],[30,2,31,2],[30,3,30,7],[30,8,30,10],[30,11,30,16],[30,17,31,19],[30,22,31,23],[28,37,29,37],[28,38,29,38],[28,39,29,39],[28,2,29,2],[30,37,31,37],[30,38,31,38],[30,39,31,39],[28,40,29,40],[29,3,29,7],[29,8,29,10],[29,11,29,16],[29,20,29,21],[28,31,29,31],[28,32,29,32],[28,33,29,33],[28,34,29,34],[28,35,29,35],[28,36,29,36],[28,25,29,25],[28,26,29,26],[28,27,29,27],[28,28,29,28],[28,29,29,29],[28,30,29,30],[28,3,28,7],[28,8,28,10],[28,11,28,16],[28,17,29,19],[28,22,29,23],[26,39,27,39],[26,40,27,40],[27,3,27,7],[27,8,27,10],[27,11,27,16],[27,20,27,21],[26,31,27,31],[26,32,27,32],[26,33,27,33],[26,34,27,34],[26,35,27,35],[26,36,27,36],[26,25,27,25],[26,26,27,26],[26,27,27,27],[26,28,27,28],[26,29,27,29],[26,30,27,30],[26,2,27,2],[26,3,26,7],[26,8,26,10],[26,11,26,16],[26,17,27,19],[26,22,27,23],[24,36,25,36],[24,37,25,37],[24,38,25,38],[26,37,27,37],[26,38,27,38],[24,2,25,2],[24,39,25,39],[24,40,25,40],[25,3,25,7],[25,8,25,10],[25,11,25,16],[25,20,25,21],[24,30,25,30],[24,31,25,31],[24,32,25,32],[24,33,25,33],[24,34,25,34],[24,35,25,35],[24,22,25,23],[24,25,25,25],[24,26,25,26],[24,27,25,27],[24,28,25,28],[24,29,25,29],[24,3,24,7],[24,8,24,10],[24,11,24,16],[24,17,25,19],[22,2,23,7],[22,8,23,10],[22,11,23,16],[22,17,23,19],[17,2,20,3],[17,4,20,9],[17,10,20,10],[17,11,20,17],[19,18,19,40],[22,24,23,24],[22,25,22,30],[22,31,23,38],[22,40,23,40],[23,25,23,30],[22,20,23,21],[22,22,23,23],[7,9,9,9],[7,10,9,17],[7,18,8,20],[7,21,8,24],[13,18,14,39],[14,2,16,3],[14,4,16,9],[14,10,16,10],[14,11,16,17],[1,1,1,40],[3,2,4,3],[4,5,4,8],[5,2,5,4],[5,5,6,5],[5,6,6,8],[5,9,6,40],[10,2,12,3],[10,4,12,6],[10,7,12,7],[10,8,12,8],[10,9,12,9],[10,10,12,17],[7,25,8,29],[7,30,10,30],[7,31,12,39],[9,18,10,20],[9,21,10,24],[9,25,12,29],[11,18,12,20],[11,21,12,24],[11,30,12,30],[7,2,9,3],[7,4,9,8]]}
[]
[null,"このシートに、入力する必要はありません。入力シートに入力すると、自動的に作成されます。このまま印刷できます。"]
[]
[null,null,"様式３"]
[null,null,null,null,null,"＊太線の枠内のみ記入してください。"]
[null,null,"No,　  /",null,null,"提出日","　　　　 年  　 月 　　  日",null,null,"　　　　演　奏　利　用　明　細　書"]
[]
[null,null,"催物名",null,{"$f":"\"第\"&YEAR(TODAY())-1958&\"回筑豊吹奏楽祭\"","v":"第65回筑豊吹奏楽祭"},null,null,null,null,"会場名","イイヅカコスモスコモン 大ホール",null,null,null,null,null,null,null,"公演回数",null,null,"１回",null,null,null,"平均入場料",null,null,null,null,"レコード"]
[]
[null,null,null,null,null,null,null,null,null,null,null,null,null,null,null,null,null,null,"公演所要時間",null,null,"分",null,null,null,"１１００円"]
[null,null,"開催日",null,{"$f":"\"自\"&YEAR(TODAY())&\"年\"&\"　　6月\"&\"　　　日\"&\n\"至\"&YEAR(TODAY())&\"年\"& \"    6月\"&\"　　　日\"","v":"自2023年　　6月　　　日至2023年    6月　　　日"},null,null,2,"日間","申込者名","筑豊吹奏楽連盟"]
[null,null,null,null,null,null,null,null,null,null,null,null,null,null,null,null,null,null,"会場の定員数",null,null,"１３９２ 名",null,null,null,null,null,null,null,null,"適"]
[]
[null,null,null,null,null,null,null,null,null,null,null,null,null,null,null,null,null,null,"  ※記入上のご注意  "]
[null,null,"団体名",null,{"$f":"団体データ!K15","v":0},null,null,null,null,null,"TEL",{"$f":"団体データ!P19","v":0}]
[null,null,null,null,null,null,null,null,null,null,null,null,null,null,null,null,null,null,"  １．太枠のなかのみご記入下さい。"]
[null,null,null,null,null,null,null,null,null,null,null,null,null,null,null,null,null,null,"  ２．曲名は原題を、人名はフルネーム（外国人はｱﾙﾌｧﾍﾞｯﾄ）をご記入下さい。"]
[null,null,"担当者名",null,{"$f":"団体データ!K23","v":0},null,null,null,null,null,"FAX",{"$f":"団体データ!P20","v":0},null,null,null,null,null,null,"  ３．メドレー曲は、含まれている1曲ごとに曲名・作曲者・編曲者等をご記入下さい。"]
[null,null,null,null,null,null,null,null,null,null,null,null,null,null,null,null,null,null,"  ４．組曲を全曲利用する場合は、〝全曲〟とご記入下さい。"]
[null,null,null,null,null,null,null,null,null,null,null,null,null,null,null,null,null,null,"  ５．組曲を抜粋利用する場合は、１曲ごとに曲名・作曲者・編曲者等をご記入下さい。"]
[]
[]
[null,null,"演奏曲目",null,null,null,null,null,"作曲者",null,null,"編曲者",null,null,null,null,null,"出版者名",null,null,"演奏\n時間",null,"演奏\n回数",null,"純軽","使　用　料\n（作品バリュー）",null,null,null,null,null,"作品コード"]
[null,null,null,null,null,null,null,null,null,null,null,null,null,null,null,null,null,null,null,null,null,null,null,null,null,"（作品バリュー）"]
[null,null,1,{"$f":"著作権データ!D19","v":0},null,null,null,null,{"$f":"著作権データ!AM19","v":0},null,null,{"$f":"著作権データ!AW19","v":0},null,null,null,null,null,{"$f":"著作権データ!BG19","v":0},null,null,{"$f":"著作権データ!BQ19","v":0},{"$f":"著作権データ!BU19","v":0},"1\n回",null,"Ｓ純"]
[null,null,null,{"$f":"著作権データ!X19","v":0},null,null,null,null,null,null,null,null,null,null,null,null,null,null,null,null,"分",null,null,null,"･軽"]
[null,null,2,{"$f":"著作権データ!D20","v":0},null,null,null,null,{"$f":"著作権データ!AM20","v":0},null,null,{"$f":"著作権データ!AW20","v":0},null,null,null,null,null,{"$f":"著作権データ!BG20","v":0},null,null,{"$f":"著作権データ!$BQ$20","v":0},{"$f":"著作権データ!$BU$20","v":0},"1\n回",null,"Ｓ純"]
[null,null,null,{"$f":"著作権データ!X20","v":0},null,null,null,null,null,null,null,null,null,null,null,null,null,null,null,null,"分",null,null,null,"･軽"]
[null,null,3,{"$f":"著作権データ!D21","v":0},null,null,null,null,{"$f":"著作権データ!AM21","v":0},null,null,{"$f":"著作権データ!AW21","v":0},null,null,null,null,null,{"$f":"著作権データ!BG21","v":0},null,null,{"$f":"著作権データ!$BQ$21","v":0},{"$f":"著作権データ!$BU$21","v":0},"1\n回",null,"Ｓ純"]
[null,null,null,{"$f":"著作権データ!X21","v":0},null,null,null,null,null,null,null,null,null,null,null,null,null,null,null,null,"分",null,null,null,"･軽"]
[null,null,4,{"$f":"著作権データ!D22","v":0},null,null,null,null,{"$f":"著作権データ!AM22","v":0},null,null,{"$f":"著作権データ!AW22","v":0},null,null,null,null,null,{"$f":"著作権データ!BG22","v":0},null,null,{"$f":"著作権データ!$BQ$22","v":0},{"$f":"著作権データ!$BU$22","v":0},"1\n回",null,"Ｓ純"]
[null,null,null,{"$f":"著作権データ!X22","v":0},null,null,null,null,null,null,null,null,null,null,null,null,null,null,null,null,"分",null,null,null,"･軽"]
[null,null,5,{"$f":"著作権データ!D23","v":0},null,null,null,null,{"$f":"著作権データ!AM23","v":0},null,null,{"$f":"著作権データ!AW23","v":0},null,null,null,null,null,{"$f":"著作権データ!BG23","v":0},null,null,{"$f":"著作権データ!$BQ$23","v":0},{"$f":"著作権データ!$BU$23","v":0},"1\n回",null,"Ｓ純"]
[null,null,null,{"$f":"著作権データ!X23","v":0},null,null,null,null,null,null,null,null,null,null,null,null,null,null,null,null,"分",null,null,null,"･軽"]
[null,null,6,{"$f":"著作権データ!D24","v":0},null,null,null,null,{"$f":"著作権データ!AM24","v":0},null,null,{"$f":"著作権データ!AW24","v":0},null,null,null,null,null,{"$f":"著作権データ!BG24","v":0},null,null,{"$f":"著作権データ!$BQ$24","v":0},{"$f":"著作権データ!$BU$24","v":0},"1\n回",null,"Ｓ純"]
[null,null,null,{"$f":"著作権データ!X24","v":0},null,null,null,null,null,null,null,null,null,null,null,null,null,null,null,null,"分",null,null,null,"･軽"]
[null,null,7,{"$f":"著作権データ!D25","v":0},null,null,null,null,{"$f":"著作権データ!AM25","v":0},null,null,{"$f":"著作権データ!AW25","v":0},null,null,null,null,null,{"$f":"著作権データ!BG25","v":0},null,null,{"$f":"著作権データ!$BQ$25","v":0},{"$f":"著作権データ!$BU$25","v":0},"1\n回",null,"Ｓ純"]
[null,null,null,{"$f":"著作権データ!X25","v":0},null,null,null,null,null,null,null,null,null,null,null,null,null,null,null,null,"分",null,null,null,"･軽"]
[null,null,8,{"$f":"著作権データ!D26","v":0},null,null,null,null,{"$f":"著作権データ!AM26","v":0},null,null,{"$f":"著作権データ!AW26","v":0},null,null,null,null,null,{"$f":"著作権データ!BG26","v":0},null,null,{"$f":"著作権データ!$BQ$26","v":0},{"$f":"著作権データ!$BU$26","v":0},"1\n回",null,"Ｓ純"]
[null,null,null,{"$f":"著作権データ!X26","v":0},null,null,null,null,null,null,null,null,null,null,null,null,null,null,null,null,"分",null,null,null,"･軽"]
[null,null,9,{"$f":"著作権データ!D27","v":0},null,null,null,null,{"$f":"著作権データ!AM27","v":0},null,null,{"$f":"著作権データ!AW27","v":0},null,null,null,null,null,{"$f":"著作権データ!BG27","v":0},null,null,{"$f":"著作権データ!$BQ$27","v":0},{"$f":"著作権データ!$BU$27","v":0},"1\n回",null,"Ｓ純"]
[null,null,null,{"$f":"著作権データ!X27","v":0},null,null,null,null,null,null,null,null,null,null,null,null,null,null,null,null,"分",null,null,null,"･軽"]
[null,null,10,{"$f":"著作権データ!D28","v":0},null,null,null,null,{"$f":"著作権データ!AM28","v":0},null,null,{"$f":"著作権データ!AW28","v":0},null,null,null,null,null,{"$f":"著作権データ!BG28","v":0},null,null,{"$f":"著作権データ!$BQ$28","v":0},{"$f":"著作権データ!$BU$28","v":0},"1\n回",null,"Ｓ純"]
[null,null,null,{"$f":"著作権データ!X28","v":0},null,null,null,null,null,null,null,null,null,null,null,null,null,null,null,null,"分",null,null,null,"･軽"]
[null,null,null,null,null,null,null,null,null,"Ｎ・Ｍ･･･当協会管理外　　Ｐ・Ｄ･･･著作権消滅",null,null,null,null,null,null,null,null,null,"小計",null,null,null,null,null,null,null,null,null,null,null,9,9,9,9,9,9,9,9]
[null,null,null,null,null,null,null,null,null,null,"請求日",null,null,null,null,null,null,null,null,"消費税相当額",null,null,null,null,null,null,null,null,null,null,null,"請求書番号"]
[null,null,null," ＪＡＳＲＡＣ提出用",null,null,null,null,null,null,"種目\n規定区分",null,"Ａ",null,null,null,null,null,null,"合計"]
[null,null,"様式３"]
[null,null,null,null,null,"＊太線の枠内のみ記入してください。"]
[null,null,"No,　  /",null,null,"提出日","　　　　 年  　 月 　　  日",null,null,"　　　　演　奏　利　用　明　細　書"]
[]
[null,null,"催物名",null,{"$f":"\"第\"&YEAR(TODAY())-1958&\"回筑豊吹奏楽祭\"","v":"第65回筑豊吹奏楽祭"},null,null,null,null,"会場名",{"$f":"K8","v":"イイヅカコスモスコモン 大ホール"},null,null,null,null,null,null,null,"公演回数",null,null,"１回",null,null,null,"平均入場料",null,null,null,null,"レコード"]
[]
[null,null,null,null,null,null,null,null,null,null,null,null,null,null,null,null,null,null,"公演所要時間",null,null,"分",null,null,null,{"$f":"Z10","v":"１１００円"}]
[null,null,"開催日",null,{"$f":"\"自\"&YEAR(TODAY())&\"年\"&\"　　6月\"&\"　　　日\"&\n\"至\"&YEAR(TODAY())&\"年\"& \"    6月\"&\"　　　日\"","v":"自2023年　　6月　　　日至2023年    6月　　　日"},null,null,2,"日間","申込者名","筑豊吹奏楽連盟"]
[null,null,null,null,null,null,null,null,null,null,null,null,null,null,null,null,null,null,"会場の定員数",null,null,{"$f":"V12","v":"１３９２ 名"},null,null,null,null,null,null,null,null,"適"]
[]
[null,null,null,null,null,null,null,null,null,null,null,null,null,null,null,null,null,null,"  ※記入上のご注意  "]
[null,null,"団体名",null,{"$f":"E15","v":0},null,null,null,null,null,"TEL",{"$f":"L15","v":0}]
[null,null,null,null,null,null,null,null,null,null,null,null,null,null,null,null,null,null,"  １．太枠のなかのみご記入下さい。"]
[null,null,null,null,null,null,null,null,null,null,null,null,null,null,null,null,null,null,"  ２．曲名は原題を、人名はフルネーム（外国人はｱﾙﾌｧﾍﾞｯﾄ）をご記入下さい。"]
[null,null,"担当者名",null,{"$f":"E18","v":0},null,null,null,null,null,"FAX",{"$f":"L18","v":0},null,null,null,null,null,null,"  ３．メドレー曲は、含まれている1曲ごとに曲名・作曲者・編曲者等をご記入下さい。"]
[null,null,null,null,null,null,null,null,null,null,null,null,null,null,null,null,null,null,"  ４．組曲を全曲利用する場合は、〝全曲〟とご記入下さい。"]
[null,null,null,null,null,null,null,null,null,null,null,null,null,null,null,null,null,null,"  ５．組曲を抜粋利用する場合は、１曲ごとに曲名・作曲者・編曲者等をご記入下さい。"]
[]
[]
[null,null,"演奏曲目",null,null,null,null,null,"作曲者",null,null,"編曲者",null,null,null,null,null,"出版者名",null,null,"演奏\n時間",null,"演奏\n回数",null,"純軽","使　用　料\n（作品バリュー）",null,null,null,null,null,"作品コード"]
[null,null,null,null,null,null,null,null,null,null,null,null,null,null,null,null,null,null,null,null,null,null,null,null,null,"（作品バリュー）"]
[null,null,1,{"$f":"著作権データ!D29","v":0},null,null,null,null,{"$f":"著作権データ!AM29","v":0},null,null,{"$f":"著作権データ!AW29","v":0},null,null,null,null,null,{"$f":"著作権データ!BG29","v":0},null,null,{"$f":"著作権データ!$BQ$29","v":0},{"$f":"著作権データ!$BU$29","v":0},"1\n回",null,"Ｓ純"]
[null,null,null,{"$f":"著作権データ!X29","v":0},null,null,null,null,null,null,null,null,null,null,null,null,null,null,null,null,"分",null,null,null,"･軽"]
[null,null,2,{"$f":"著作権データ!D30","v":0},null,null,null,null,{"$f":"著作権データ!AM30","v":0},null,null,{"$f":"著作権データ!AW30","v":0},null,null,null,null,null,{"$f":"著作権データ!BG30","v":0},null,null,{"$f":"著作権データ!$BQ$30","v":0},{"$f":"著作権データ!$BU$30","v":0},"1\n回",null,"Ｓ純"]
[null,null,null,{"$f":"著作権データ!X30","v":0},null,null,null,null,null,null,null,null,null,null,null,null,null,null,null,null,"分",null,null,null,"･軽"]
[null,null,3,{"$f":"著作権データ!D31","v":0},null,null,null,null,{"$f":"著作権データ!AM31","v":0},null,null,{"$f":"著作権データ!AW31","v":0},null,null,null,null,null,{"$f":"著作権データ!BG31","v":0},null,null,{"$f":"著作権データ!$BQ$31","v":0},{"$f":"著作権データ!$BU$31","v":0},"1\n回",null,"Ｓ純"]
[null,null,null,{"$f":"著作権データ!X31","v":0},null,null,null,null,null,null,null,null,null,null,null,null,null,null,null,null,"分",null,null,null,"･軽"]
[null,null,4,{"$f":"著作権データ!D32","v":0},null,null,null,null,{"$f":"著作権データ!AM32","v":0},null,null,{"$f":"著作権データ!AW32","v":0},null,null,null,null,null,{"$f":"著作権データ!BG32","v":0},null,null,{"$f":"著作権データ!$BQ$32","v":0},{"$f":"著作権データ!$BU$32","v":0},"1\n回",null,"Ｓ純"]
[null,null,null,{"$f":"著作権データ!X32","v":0},null,null,null,null,null,null,null,null,null,null,null,null,null,null,null,null,"分",null,null,null,"･軽"]
[null,null,5,{"$f":"著作権データ!D33","v":0},null,null,null,null,{"$f":"著作権データ!AM33","v":0},null,null,{"$f":"著作権データ!AW33","v":0},null,null,null,null,null,{"$f":"著作権データ!BG33","v":0},null,null,{"$f":"著作権データ!$BQ$33","v":0},{"$f":"著作権データ!$BU$33","v":0},"1\n回",null,"Ｓ純"]
[null,null,null,{"$f":"著作権データ!X33","v":0},null,null,null,null,null,null,null,null,null,null,null,null,null,null,null,null,"分",null,null,null,"･軽"]
[null,null,6,{"$f":"著作権データ!D34","v":0},null,null,null,null,{"$f":"著作権データ!AM34","v":0},null,null,{"$f":"著作権データ!AW34","v":0},null,null,null,null,null,{"$f":"著作権データ!BG34","v":0},null,null,{"$f":"著作権データ!$BQ$34","v":0},{"$f":"著作権データ!$BU$34","v":0},"1\n回",null,"Ｓ純"]
[null,null,null,{"$f":"著作権データ!X34","v":0},null,null,null,null,null,null,null,null,null,null,null,null,null,null,null,null,"分",null,null,null,"･軽"]
[null,null,7,{"$f":"著作権データ!D35","v":0},null,null,null,null,{"$f":"著作権データ!AM35","v":0},null,null,{"$f":"著作権データ!AW35","v":0},null,null,null,null,null,{"$f":"著作権データ!BG35","v":0},null,null,{"$f":"著作権データ!$BQ$35","v":0},{"$f":"著作権データ!$BU$35","v":0},"1\n回",null,"Ｓ純"]
[null,null,null,{"$f":"著作権データ!X35","v":0},null,null,null,null,null,null,null,null,null,null,null,null,null,null,null,null,"分",null,null,null,"･軽"]
[null,null,8,{"$f":"著作権データ!D36","v":0},null,null,null,null,{"$f":"著作権データ!AM36","v":0},null,null,{"$f":"著作権データ!AW36","v":0},null,null,null,null,null,{"$f":"著作権データ!BG36","v":0},null,null,{"$f":"著作権データ!$BQ$36","v":0},{"$f":"著作権データ!$BU$36","v":0},"1\n回",null,"Ｓ純"]
[null,null,null,{"$f":"著作権データ!X36","v":0},null,null,null,null,null,null,null,null,null,null,null,null,null,null,null,null,"分",null,null,null,"･軽"]
[null,null,9,{"$f":"著作権データ!D37","v":0},null,null,null,null,{"$f":"著作権データ!AM37","v":0},null,null,{"$f":"著作権データ!AW37","v":0},null,null,null,null,null,{"$f":"著作権データ!BG37","v":0},null,null,{"$f":"著作権データ!$BQ$37","v":0},{"$f":"著作権データ!$BU$37","v":0},"1\n回",null,"Ｓ純"]
[null,null,null,{"$f":"著作権データ!X37","v":0},null,null,null,null,null,null,null,null,null,null,null,null,null,null,null,null,"分",null,null,null,"･軽"]
[null,null,10,{"$f":"著作権データ!D38","v":0},null,null,null,null,{"$f":"著作権データ!AM38","v":0},null,null,{"$f":"著作権データ!AW38","v":0},null,null,null,null,null,{"$f":"著作権データ!BG38","v":0},null,null,{"$f":"著作権データ!$BQ$38","v":0},{"$f":"著作権データ!$BU$38","v":0},"1\n回",null,"Ｓ純"]
[null,null,null,{"$f":"著作権データ!X38","v":0},null,null,null,null,null,null,null,null,null,null,null,null,null,null,null,null,"分",null,null,null,"･軽"]
[null,null,null,null,null,null,null,null,null,"Ｎ・Ｍ･･･当協会管理外　　Ｐ・Ｄ･･･著作権消滅",null,null,null,null,null,null,null,null,null,"小計",null,null,null,null,null,null,null,null,null,null,null,9,9,9,9,9,9,9,9]
[null,null,null,null,null,null,null,null,null,null,"請求日",null,null,null,null,null,null,null,null,"消費税相当額",null,null,null,null,null,null,null,null,null,null,null,"請求書番号"]
[null,null,null," ＪＡＳＲＡＣ提出用",null,null,null,null,null,null,"種目\n規定区分",null,"Ａ",null,null,null,null,null,null,"合計"]

{"sheet":"アナウンス原稿","index":9,"n_rows":38,"n_cols":55,"rows_kept":38,"cut":false,"hidden":false,"merged":[[31,2,31,9],[31,10,31,33],[31,34,31,57],[22,2,25,3],[22,31,22,34],[22,35,22,53],[24,4,24,7],[24,8,24,57],[25,4,25,7],[25,8,25,57],[30,2,30,9],[30,10,30,33],[30,34,30,57],[22,54,22,57],[23,4,23,7],[23,8,23,26],[23,27,23,30],[23,31,23,34],[23,35,23,53],[23,54,23,57],[26,2,29,3],[28,4,28,7],[28,8,28,57],[29,4,29,7],[3,2,3,58],[4,2,4,58],[5,5,5,10],[5,11,5,19],[1,1,1,59],[6,2,6,12],[6,13,6,19],[6,20,6,43],[18,2,21,3],[18,4,18,7],[18,8,18,26],[18,27,18,30],[18,31,18,34],[18,35,18,53],[19,4,19,7],[19,8,19,26],[19,27,19,30],[19,31,19,34],[18,54,18,57],[19,35,19,53],[19,54,19,57],[20,4,20,7],[20,8,20,57],[21,4,21,7],[8,2,8,9],[9,2,9,9],[10,4,10,7],[11,4,11,7],[11,27,11,30],[10,27,10,30],[9,10,9,33],[9,34,9,57],[8,10,8,33],[8,34,8,57],[12,4,12,7],[13,4,13,7],[10,2,13,3],[12,8,12,57],[13,8,13,57],[11,54,11,57],[10,54,10,57],[11,35,11,53],[11,31,11,34],[11,8,11,26],[10,8,10,26],[10,31,10,34],[10,35,10,53],[14,2,17,3],[14,4,14,7],[14,8,14,26],[14,27,14,30],[14,31,14,34],[16,4,16,7],[16,8,16,57],[17,4,17,7],[17,8,17,57],[14,35,14,53],[14,54,14,57],[15,4,15,7],[15,8,15,26],[15,27,15,30],[15,31,15,34],[15,35,15,53],[15,54,15,57],[29,8,29,57],[21,8,21,57],[22,4,22,7],[22,8,22,26],[22,27,22,30],[26,35,26,53],[26,54,26,57],[27,4,27,7],[27,8,27,26],[27,27,27,30],[27,31,27,34],[27,35,27,53],[27,54,27,57],[26,4,26,7],[26,8,26,26],[26,27,26,30],[26,31,26,34]]}
[]
[null,"このシートに、入力する必要はありません。入力シートに入力すると、自動的に作成されます。このまま印刷できます。"]
[]
[]
[null,null,{"$f":"\"第 \"&YEAR(TODAY())-1958&\" 回　筑豊吹奏楽祭\nアナウンス原稿\"","v":"第 65 回　筑豊吹奏楽祭\nアナウンス原稿"}]
[null,null,null,null,null,"出演日",null,null,null,null,null,{"$f":"団体データ!K29","v":0}]
[null,null,"プログラム",null,null,null,null,null,null,null,null,null,null,null,null,null,null,null,null,null,"番 ※事務局にて記入します"]
[]
[null,null,"フリガナ",null,null,null,null,null,null,null,{"$f":"団体データ!K14","v":""},null,null,null,null,null,null,null,null,null,null,null,null,null,null,null,null,null,null,null,null,null,null,null,{"$f":"団体データ!Z30","v":""}]
[null,null,"団体名",null,null,null,null,null,null,null,{"$f":"団体データ!K15","v":0},null,null,null,null,null,null,null,null,null,null,null,null,null,null,null,null,null,null,null,null,null,null,null,{"$f":"団体データ!Z31","v":0}]
[null,null,"①",null,"フリガナ",null,null,null,{"$f":"プログラムデータ!S34","v":0},null,null,null,null,null,null,null,null,null,null,null,null,null,null,null,null,null,null,null,null,null,null,"フリガナ",null,null,null,{"$f":"プログラムデータ!S36","v":0}]
[null,null,null,null,"作曲者",null,null,null,{"$f":"プログラムデータ!S35","v":0},null,null,null,null,null,null,null,null,null,null,null,null,null,null,null,null,null,null,"作曲",null,null,null,"編曲者",null,null,null,{"$f":"プログラムデータ!S37","v":0},null,null,null,null,null,null,null,null,null,null,null,null,null,null,null,null,null,null,"編曲"]
[null,null,null,null,"フリガナ",null,null,null,{"$f":"プログラムデータ!S32","v":0}]
[null,null,null,null,"曲目",null,null,null,{"$f":"プログラムデータ!S33","v":0}]
[null,null,"②",null,"フリガナ",null,null,null,{"$f":"プログラムデータ!S43","v":0},null,null,null,null,null,null,null,null,null,null,null,null,null,null,null,null,null,null,null,null,null,null,"フリガナ",null,null,null,{"$f":"プログラムデータ!S45","v":0}]
[null,null,null,null,"作曲者",null,null,null,{"$f":"プログラムデータ!S44","v":0},null,null,null,null,null,null,null,null,null,null,null,null,null,null,null,null,null,null,"作曲",null,null,null,"編曲者",null,null,null,{"$f":"プログラムデータ!S46","v":0},null,null,null,null,null,null,null,null,null,null,null,null,null,null,null,null,null,null,"編曲"]
[null,null,null,null,"フリガナ",null,null,null,{"$f":"プログラムデータ!S41","v":0}]
[null,null,null,null,"曲目",null,null,null,{"$f":"プログラムデータ!S42","v":0}]
[null,null,"③",null,"フリガナ",null,null,null,{"$f":"プログラムデータ!S52","v":0},null,null,null,null,null,null,null,null,null,null,null,null,null,null,null,null,null,null,null,null,null,null,"フリガナ",null,null,null,{"$f":"プログラムデータ!S54","v":0}]
[null,null,null,null,"作曲者",null,null,null,{"$f":"プログラムデータ!S53","v":0},null,null,null,null,null,null,null,null,null,null,null,null,null,null,null,null,null,null,"作曲",null,null,null,"編曲者",null,null,null,{"$f":"プログラムデータ!S55","v":0},null,null,null,null,null,null,null,null,null,null,null,null,null,null,null,null,null,null,"編曲"]
[null,null,null,null,"フリガナ",null,null,null,{"$f":"プログラムデータ!S50","v":0}]
[null,null,null,null,"曲目",null,null,null,{"$f":"プログラムデータ!S51","v":0}]
[null,null,"④",null,"フリガナ",null,null,null,{"$f":"プログラムデータ!S61","v":0},null,null,null,null,null,null,null,null,null,null,null,null,null,null,null,null,null,null,null,null,null,null,"フリガナ",null,null,null,{"$f":"プログラムデータ!S63","v":0}]
[null,null,null,null,"作曲者",null,null,null,{"$f":"プログラムデータ!S62","v":0},null,null,null,null,null,null,null,null,null,null,null,null,null,null,null,null,null,null,"作曲",null,null,null,"編曲者",null,null,null,{"$f":"プログラムデータ!S64","v":0},null,null,null,null,null,null,null,null,null,null,null,null,null,null,null,null,null,null,"編曲"]
[null,null,null,null,"フリガナ",null,null,null,{"$f":"プログラムデータ!S59","v":0}]
[null,null,null,null,"曲目",null,null,null,{"$f":"プログラムデータ!S60","v":0}]
[null,null,"⑤",null,"フリガナ",null,null,null,{"$f":"プログラムデータ!S70","v":0},null,null,null,null,null,null,null,null,null,null,null,null,null,null,null,null,null,null,null,null,null,null,"フリガナ",null,null,null,{"$f":"プログラムデータ!S72","v":0}]
[null,null,null,null,"作曲者",null,null,null,{"$f":"プログラムデータ!S71","v":0},null,null,null,null,null,null,null,null,null,null,null,null,null,null,null,null,null,null,"作曲",null,null,null,"編曲者",null,null,null,{"$f":"プログラムデータ!S73","v":0},null,null,null,null,null,null,null,null,null,null,null,null,null,null,null,null,null,null,"編曲"]
[null,null,null,null,"フリガナ",null,null,null,{"$f":"プログラムデータ!S68","v":0}]
[null,null,null,null,"曲目",null,null,null,{"$f":"プログラムデータ!S69","v":0}]
[null,null,"フリガナ",null,null,null,null,null,null,null,{"$f":"団体データ!P34","v":""},null,null,null,null,null,null,null,null,null,null,null,null,null,null,null,null,null,null,null,null,null,null,null,{"$f":"団体データ!P36","v":""}]
[null,null,"指揮",null,null,null,null,null,null,null,{"$f":"団体データ!P35","v":0},null,null,null,null,null,null,null,null,null,null,null,null,null,null,null,null,null,null,null,null,null,null,null,{"$f":"団体データ!P37","v":0}]
[]
[]
[null,null,"※出演順は吹奏楽連盟事務局にて記入いたします。"]
[null,null,"※中学校・高等学校の団体名は正式名称でアナウンスいたします。"]
[null,null,"（クラブ名はアナウンスされません）"]
[null,null,"※楽章・組曲・メドレーはアナウンスされません。"]

{"sheet":"請求書","index":10,"n_rows":143,"n_cols":41,"rows_kept":143,"cut":false,"hidden":false,"merged":[[1,1,1,50],[5,4,8,47],[11,4,12,22],[11,23,12,25],[14,11,17,15],[14,16,17,36],[14,37,17,44],[19,7,19,15],[19,16,19,31],[24,11,24,14],[24,15,24,18],[24,19,24,21],[24,22,24,24],[24,25,24,26],[24,27,24,29],[24,30,24,31],[60,22,60,24],[60,25,60,26],[60,27,60,29],[60,30,60,31],[41,4,44,47],[47,4,48,22],[47,23,48,25],[50,11,53,15],[50,16,53,36],[50,37,53,44],[29,30,29,41],[65,30,65,41],[70,4,70,39],[70,40,70,49],[72,13,72,31],[72,32,72,44],[55,32,55,47],[34,4,34,39],[34,40,34,49],[36,13,36,31],[36,32,36,44],[55,7,55,15],[55,16,55,31],[60,11,60,14],[60,15,60,18],[60,19,60,21],[76,4,79,47],[82,4,83,22],[82,23,83,25],[85,11,88,15],[85,16,88,36],[85,37,88,44],[90,7,90,15],[90,16,90,31],[90,32,90,47],[95,11,95,14],[95,15,95,18],[95,19,95,21],[95,22,95,24],[95,25,95,26],[95,27,95,29],[95,30,95,31],[125,7,125,15],[125,16,125,31],[125,32,125,47],[100,30,100,41],[105,4,105,39],[105,40,105,49],[107,13,107,31],[107,32,107,44],[111,4,114,47],[117,4,118,22],[117,23,118,25],[120,11,123,15],[120,16,123,36],[120,37,123,44],[130,30,130,31],[135,30,135,41],[140,4,140,39],[140,40,140,49],[142,13,142,31],[142,32,142,44],[130,11,130,14],[130,15,130,18],[130,19,130,21],[130,22,130,24],[130,25,130,26],[130,27,130,29]]}
[]
[null,"このシートに、入力する必要はありません。入力シートに入力すると、自動的に作成されます。このまま印刷できます。"]
[]
[]
[]
[null,null,null,null,"請　求　書"]
[]
[]
[]
[]
[]
[null,null,null,null,{"$f":"団体データ!K15","v":0},null,null,null,null,null,null,null,null,null,null,null,null,null,null,null,null,null,null,"様"]
[]
[]
[null,null,null,null,null,null,null,null,null,null,null,"金",null,null,null,null,{"$f":"提出書類確認!AL29","v":0},null,null,null,null,null,null,null,null,null,null,null,null,null,null,null,null,null,null,null,null,"円也"]
[]
[]
[]
[]
[null,null,null,null,null,null,null,"上記の通り，",null,null,null,null,null,null,null,null,{"$f":"著作権申請!E8","v":"第65回筑豊吹奏楽祭"},null,null,null,null,null,null,null,null,null,null,null,null,null,null,null,"参加費として"]
[]
[null,null,null,null,null,null,"請求いたします。"]
[]
[]
[null,null,null,null,null,null,null,null,null,null,null,{"$f":"団体データ!K12","v":"令和"},null,null,null,{"$f":"団体データ!N12","v":5},{"$f":"YEAR(TODAY())-1988","v":35},{"$f":"YEAR(TODAY())-1988","v":35},{"$f":"YEAR(TODAY())-1988","v":35},"年",null,null,5,null,null,"月",null,null,null,null,"日"]
[]
[]
[null,null,null,null,null,null,null,null,null,null,null,null,null,null,null,null,null,null,null,null,null,"筑豊吹奏楽連盟"]
[]
[null,null,null,null,null,null,null,null,null,null,null,null,null,null,null,null,null,null,null,null,null,null,null,"理事長",null,null,null,null,null,null,"伏　見　宣　秀"]
[]
[]
[]
[]
[null,null,null,null,"振込先：福岡銀行　飯塚支店　普通預金　口座番号",null,null,null,null,null,null,null,null,null,null,null,null,null,null,null,null,null,null,null,null,null,null,null,null,null,null,null,null,null,null,null,null,null,null,null,2116079]
[]
[null,null,null,null,null,null,null,null,null,null,null,null,null,"筑豊吹奏楽連盟　理事長",null,null,null,null,null,null,null,null,null,null,null,null,null,null,null,null,null,null,"溝口　英"]
[]
[]
[]
[]
[null,null,null,null,"請　求　書"]
[]
[]
[]
[]
[]
[null,null,null,null,{"$f":"$E$12","v":0},null,null,null,null,null,null,null,null,null,null,null,null,null,null,null,null,null,null,"様"]
[]
[]
[null,null,null,null,null,null,null,null,null,null,null,"金",null,null,null,null,{"$f":"提出書類確認!AL31","v":1500},null,null,null,null,null,null,null,null,null,null,null,null,null,null,null,null,null,null,null,null,"円也"]
[]
[]
[]
[]
[null,null,null,null,null,null,null,"上記の通り，",null,null,null,null,null,null,null,null,{"$f":"$Q$20","v":"第65回筑豊吹奏楽祭"},null,null,null,null,null,null,null,null,null,null,null,null,null,null,null,"著作権料として"]
[]
[null,null,null,null,null,null,"請求いたします。"]
[]
[]
[null,null,null,null,null,null,null,null,null,null,null,{"$f":"L25","v":"令和"},null,null,null,{"$f":"P25","v":5},null,null,null,"年",null,null,{"$f":"W25","v":5},null,null,"月",null,null,null,null,"日"]
[]
[]
[null,null,null,null,null,null,null,null,null,null,null,null,null,null,null,null,null,null,null,null,null,"筑豊吹奏楽連盟"]
[]
[null,null,null,null,null,null,null,null,null,null,null,null,null,null,null,null,null,null,null,null,null,null,null,"理事長",null,null,null,null,null,null,{"$f":"$AE$30","v":"伏　見　宣　秀"}]
[]
[]
[]
[]
[null,null,null,null,{"$f":"$E$35","v":"振込先：福岡銀行　飯塚支店　普通預金　口座番号"},null,null,null,null,null,null,null,null,null,null,null,null,null,null,null,null,null,null,null,null,null,null,null,null,null,null,null,null,null,null,null,null,null,null,null,{"$f":"$AO$35","v":2116079}]
[]
[null,null,null,null,null,null,null,null,null,null,null,null,null,"筑豊吹奏楽連盟　理事長",null,null,null,null,null,null,null,null,null,null,null,null,null,null,null,null,null,null,{"$f":"$AG$37","v":"溝口　英"}]
[]
[]
[]
[null,null,null,null,"請　求　書"]
[]
[]
[]
[]
[]
[null,null,null,null,{"$f":"$E$12","v":0},null,null,null,null,null,null,null,null,null,null,null,null,null,null,null,null,null,null,"様"]
[]
[]
[null,null,null,null,null,null,null,null,null,null,null,"金",null,null,null,null,{"$f":"提出書類確認!AL32","v":0},null,null,null,null,null,null,null,null,null,null,null,null,null,null,null,null,null,null,null,null,"円也"]
[]
[]
[]
[]
[null,null,null,null,null,null,null,"上記の通り，",null,null,null,null,null,null,null,null,{"$f":"$Q$20","v":"第65回筑豊吹奏楽祭"},null,null,null,null,null,null,null,null,null,null,null,null,null,null,null,"ピアノ使用料として"]
[]
[null,null,null,null,null,null,"請求いたします。"]
[]
[]
[null,null,null,null,null,null,null,null,null,null,null,{"$f":"L25","v":"令和"},null,null,null,{"$f":"P25","v":5},null,null,null,"年",null,null,{"$f":"$W$25","v":5},null,null,"月",null,null,null,null,"日"]
[]
[]
[null,null,null,null,null,null,null,null,null,null,null,null,null,null,null,null,null,null,null,null,null,"筑豊吹奏楽連盟"]
[]
[null,null,null,null,null,null,null,null,null,null,null,null,null,null,null,null,null,null,null,null,null,null,null,"理事長",null,null,null,null,null,null,{"$f":"$AE$30","v":"伏　見　宣　秀"}]
[]
[]
[]
[]
[null,null,null,null,{"$f":"$E$35","v":"振込先：福岡銀行　飯塚支店　普通預金　口座番号"},null,null,null,null,null,null,null,null,null,null,null,null,null,null,null,null,null,null,null,null,null,null,null,null,null,null,null,null,null,null,null,null,null,null,null,{"$f":"$AO$35","v":2116079}]
[]
[null,null,null,null,null,null,null,null,null,null,null,null,null,"筑豊吹奏楽連盟　理事長",null,null,null,null,null,null,null,null,null,null,null,null,null,null,null,null,null,null,{"$f":"$AG$37","v":"溝口　英"}]
[]
[]
[]
[null,null,null,null,"請　求　書"]
[]
[]
[]
[]
[]
[null,null,null,null,{"$f":"$E$12","v":0},null,null,null,null,null,null,null,null,null,null,null,null,null,null,null,null,null,null,"様"]
[]
[]
[null,null,null,null,null,null,null,null,null,null,null,"金",null,null,null,null,{"$f":"提出書類確認!AL30","v":0},null,null,null,null,null,null,null,null,null,null,null,null,null,null,null,null,null,null,null,null,"円也"]
[]
[]
[]
[]
[null,null,null,null,null,null,null,"上記の通り，",null,null,null,null,null,null,null,null,{"$f":"$Q$20","v":"第65回筑豊吹奏楽祭"},null,null,null,null,null,null,null,null,null,null,null,null,null,null,null,"登録外部員参加料として"]
[]
[null,null,null,null,null,null,"請求いたします。"]
[]
[]
[null,null,null,null,null,null,null,null,null,null,null,{"$f":"L25","v":"令和"},null,null,null,{"$f":"P25","v":5},null,null,null,"年",null,null,{"$f":"$W$25","v":5},null,null,"月",null,null,null,null,"日"]
[]
[]
[null,null,null,null,null,null,null,null,null,null,null,null,null,null,null,null,null,null,null,null,null,"筑豊吹奏楽連盟"]
[]
[null,null,null,null,null,null,null,null,null,null,null,null,null,null,null,null,null,null,null,null,null,null,null,"理事長",null,null,null,null,null,null,{"$f":"$AE$30","v":"伏　見　宣　秀"}]
[]
[]
[]
[]
[null,null,null,null,{"$f":"$E$35","v":"振込先：福岡銀行　飯塚支店　普通預金　口座番号"},null,null,null,null,null,null,null,null,null,null,null,null,null,null,null,null,null,null,null,null,null,null,null,null,null,null,null,null,null,null,null,null,null,null,null,{"$f":"$AO$35","v":2116079}]
[]
[null,null,null,null,null,null,null,null,null,null,null,null,null,"筑豊吹奏楽連盟　理事長",null,null,null,null,null,null,null,null,null,null,null,null,null,null,null,null,null,null,{"$f":"$AG$37","v":"溝口　英"}]

{"sheet":"ステージ配置図","index":11,"n_rows":107,"n_cols":122,"rows_kept":107,"cut":false,"hidden":false,"merged":[[98,27,107,45],[98,96,107,115],[98,121,107,138],[88,96,90,99],[91,96,93,99],[94,96,96,99],[88,100,90,103],[88,104,90,107],[91,100,93,103],[91,104,93,107],[94,100,96,103],[94,104,96,107],[88,86,90,95],[91,86,93,95],[94,86,96,95],[87,100,87,103],[86,96,87,99],[86,104,87,107],[86,108,87,111],[86,112,87,115],[88,108,90,111],[91,108,93,111],[94,108,96,111],[88,112,90,115],[91,112,93,115],[94,112,96,115],[86,100,86,103],[93,13,95,19],[93,20,95,22],[93,23,95,24],[11,15,12,17],[13,15,14,17],[15,15,16,17],[17,15,18,17],[19,15,20,17],[21,15,22,17],[23,15,24,17],[25,15,26,17],[30,19,39,25],[17,6,18,14],[46,13,55,19],[62,7,71,13],[31,15,32,17],[33,15,34,17],[40,19,45,19],[56,13,61,13],[85,3,86,14],[19,6,20,14],[21,3,22,5],[87,20,89,25],[86,19,86,25],[17,34,24,35],[17,32,24,33],[24,25,29,25],[14,25,23,31],[72,7,77,7],[13,3,14,5],[13,6,14,14],[15,3,16,5],[15,6,16,14],[17,3,18,5],[29,3,30,5],[25,3,26,5],[27,6,28,8],[29,6,30,8],[31,6,32,8],[27,9,28,14],[27,3,28,5],[25,6,26,14],[27,15,28,17],[29,15,30,17],[72,137,77,137],[62,131,71,137],[14,113,23,119],[30,119,39,125],[46,125,55,131],[24,119,29,119],[40,125,45,125],[7,15,8,17],[11,3,12,5],[11,6,12,14],[56,131,61,131],[30,36,37,107],[8,113,13,113],[17,108,24,109],[17,110,24,111],[12,36,29,107],[5,35,8,39],[5,40,8,46],[5,47,8,51],[5,52,8,80],[5,81,8,109],[35,2,36,18],[37,2,39,18],[19,3,20,5],[106,8,113,26],[88,45,89,71],[1,1,1,44],[87,3,89,12],[87,13,89,19],[90,3,92,12],[90,13,92,19],[90,20,92,22],[90,23,92,24],[93,3,95,12],[3,1,4,17],[50,36,82,55],[3,24,4,31],[5,33,7,34],[5,25,7,32],[5,23,7,24],[8,31,13,31],[10,20,12,30],[5,5,6,15],[84,71,85,109],[56,1,61,12],[33,3,34,5],[33,9,34,14],[33,6,34,8],[7,3,8,5],[7,6,8,14],[9,3,10,5],[9,6,10,14],[9,15,10,17],[21,6,22,14],[31,3,32,5],[31,9,32,14],[23,3,24,5],[23,6,24,14],[29,9,30,14]]}
[]
[null,"大会当日にA4サイズで２部提出してください"]
[]
[null,"下記の打楽器については２日間とも連盟で準備します。",null,null,null,null,null,null,null,null,null,null,null,null,null,null,null,null,null,null,null,null,null,null,"出演日"]
[]
[null,null,null,null,null,"準備打楽器一覧表",null,null,null,null,null,null,null,null,null,null,null,null,null,null,null,null,null,"（",null,{"$f":"団体データ!K29","v":0},null,null,null,null,null,null,null,"）",null,"出演順",null,null,null,null,{"$f":"団体精算書!N9","v":0},null,null,null,null,null,null,"団体名",null,null,null,null,{"$f":"団体データ!K15","v":0},null,null,null,null,null,null,null,null,null,null,null,null,null,null,null,null,null,null,null,null,null,null,null,null,null,null,null,null,{"$f":"団体データ!Z31","v":0}]
[]
[null,null,null,"借用",null,null,"楽器名",null,null,null,null,null,null,null,null,"持ち込み"]
[]
[null,null,null,null,null,null,"ドラムセット"]
[null,null,null,null,null,null,null,null,null,null,null,null,null,null,null,null,null,null,null,null,"使用する打楽器に「○」を記入して下さい。"]
[null,null,null,null,null,null,"バスドラム"]
[]
[null,null,null,null,null,null,"チャイム"]
[]
[null,null,null,null,null,null,"ゴング"]
[]
[null,null,null,null,null,null,"シロフォン"]
[]
[null,null,null,null,null,null,"グロッケン"]
[]
[null,null,null,null,null,null,"マリンバ"]
[]
[null,null,null,null,null,null,"ヴィブラフォン"]
[]
[null,null,null,"○",null,null,"ティンパニ"]
[]
[null,null,null,{"$f":"IF($D$26=\"○\",\"○\",\" \")","v":"○"},null,null,"S:",null,null,null,null,null,null,null,null,{"$f":"IF($P$26=\"○\",\"○\",\" \")","v":" "}]
[]
[null,null,null,{"$f":"IF($D$26=\"○\",\"○\",\" \")","v":"○"},null,null,"M:",null,null,null,null,null,null,null,null,{"$f":"IF($P$26=\"○\",\"○\",\" \")","v":" "}]
[]
[null,null,null,{"$f":"IF($D$26=\"○\",\"○\",\" \")","v":"○"},null,null,"L:",null,null,null,null,null,null,null,null,{"$f":"IF($P$26=\"○\",\"○\",\" \")","v":" "}]
[]
[null,null,null,{"$f":"IF($D$26=\"○\",\"○\",\" \")","v":"○"},null,null,"LL:",null,null,null,null,null,null,null,null,{"$f":"IF($P$26=\"○\",\"○\",\" \")","v":" "}]
[]
[null,null,"ティンパニのチューニング音を記入してくださいl"]
[]
[null,null,"借用する打楽器は配置図内に\n朱書きで○囲みをしてください。"]
[]
[]
[]
[]
[]
[]
[]
[]
[]
[]
[]
[]
[null,null,null,null,null,null,null,null,null,null,null,null,null,null,null,null,null,null,null,null,null,null,null,null,null,null,null,null,null,null,null,null,null,null,null,null,"　　　※原則下手固定※"]
[]
[]
[]
[]
[]
[null,"※チャイム・ゴングのビーター、その他の楽器のスティック・マレットは各団体にてご準備ください。"]
[]
[]
[]
[]
[]
[]
[]
[]
[]
[]
[]
[]
[]
[]
[]
[]
[]
[]
[]
[]
[]
[]
[]
[]
[]
[]
[]
[null,null,null,null,null,null,null,null,null,null,null,null,null,null,null,null,null,null,null,null,null,null,null,null,null,null,null,null,null,null,null,null,null,null,null,null,null,null,null,null,null,null,null,null,null,null,null,null,null,null,null,null,null,null,null,null,null,null,null,null,null,null,null,null,null,null,null,null,null,null,null,"↑指揮者用譜面台・指揮台が不必要な場合は×をつけてください。"]
[null,null,null,"※事前申請が必要です"]
[null,null,null,null,null,null,null,null,null,null,null,null,null,null,null,null,null,null,null,"↓○をつけてください",null,null,null,null,null,null,null,null,null,null,null,null,null,null,null,null,null,null,null,null,null,null,null,null,null,null,null,null,null,null,null,null,null,null,null,null,null,null,null,null,null,null,null,null,null,null,null,null,null,null,null,null,null,null,null,null,null,null,null,null,null,null,null,null,null,null,null,null,null,null,null,null,null,null,null,null,"打楽器",null,null,null,"打楽器以外",null,null,null,"ひな壇1段目",null,null,null,"ひな壇2段目",null,null,null,"合計"]
[null,null,null,"・ピアノ使用",null,null,null,null,null,null,null,null,null,{"$f":"\"( \"&IF(団体データ!$K$39=\"有り\",\"○\",\"×\")&\" )\"","v":"( × )"},null,null,null,null,null,null,"(全開・半開・閉)",null,null,null,null,null,null,null,null,null,null,null,null,null,null,null,null,null,null,null,null,null,null,null,null,null,null,null,null,null,null,null,null,null,null,null,null,null,null,null,null,null,null,null,null,null,null,null,null,null,null,null,null,null,null,null,null,null,null,null,null,null,null,null,null,null,null,null,null,null,null,null,null,null,null,null,null,null,null,null,"フロア"]
[null,null,null,null,null,null,null,null,null,null,null,null,null,null,null,null,null,null,null,null,null,null,null,null,null,null,null,null,null,null,null,null,null,null,null,null,null,null,null,null,null,null,null,null,null,"↑楽器名を四角囲みで記入して利用してください。",null,null,null,null,null,null,null,null,null,null,null,null,null,null,null,null,null,null,null,null,null,null,null,null,null,null,null,null,null,null,null,null,null,null,null,null,null,null,null,null,"椅子（○）",null,null,null,null,null,null,null,null,null,null,null,null,null,null,null,null,null,null,null,null,null,null,null,null,null,{"$f":"SUM(CS89:DH91)","v":0}]
[]
[null,null,null,"・マイク使用",null,null,null,null,null,null,null,null,null,{"$f":"\"( \"&IF(団体データ!$K$4=\"有り\",\"○\",\"×\")&\" )\"","v":"( × )"},null,null,null,null,null,null,{"$f":"団体データ!$W$42","v":0},null,null,"本"]
[null,null,null,null,null,null,null,null,null,null,null,null,null,null,null,null,null,null,null,null,null,null,null,null,null,null,null,null,null,null,null,null,null,null,null,null,null,null,null,null,null,null,null,null,null,null,null,null,null,null,null,null,null,null,null,null,null,null,null,null,null,null,null,null,null,null,null,null,null,null,null,null,null,null,null,null,null,null,null,null,null,null,null,null,null,null,"譜面台（Y）",null,null,null,null,null,null,null,null,null,null,null,null,null,null,null,null,null,null,null,null,null,null,null,null,null,{"$f":"SUM(CS92:DH94)","v":0}]
[]
[null,null,null,"・ピアノ椅子使用",null,null,null,null,null,null,null,null,null,{"$f":"\"( \"&IF(団体データ!$K$41=\"有り\",\"○\",\"×\")&\" )\"","v":"( × )"},null,null,null,null,null,null,{"$f":"団体データ!$W$41","v":0},null,null,"脚"]
[null,null,null,null,null,null,null,null,null,null,null,null,null,null,null,null,null,null,null,null,null,null,null,null,null,null,null,null,null,null,null,null,null,null,null,null,null,null,null,null,null,null,null,null,null,null,null,null,null,null,null,null,null,null,null,null,null,null,null,null,null,null,null,null,null,null,null,null,null,null,null,null,null,null,null,null,null,null,null,null,null,null,null,null,null,null,"ピアノ椅子（ P ）",null,null,null,null,null,null,null,null,null,null,null,null,null,null,null,null,null,null,null,null,null,null,null,null,null,{"$f":"SUM(CS95:DH97)","v":0}]
[]
[]
[]
[null,null,null,null,null,null,null,null,null,null,null,null,null,null,null,null,null,null,null,null,null,null,null,null,null,null,null,"持ち込み打楽器については、それぞれで配置場所へご記入ください。",null,null,null,null,null,null,null,null,null,null,null,null,null,null,null,null,null,null,null,null,null,null,null,null,null,null,null,null,null,null,null,null,null,null,null,null,null,null,null,null,null,null,null,null,null,null,null,null,null,null,null,null,null,null,null,null,null,null,null,null,null,null,null,null,null,null,null,null,"椅子・譜面台・ピアノ椅子の必要数を\nエリアごとに入力ください。合計は自動的に計算されます。\nなお、ピアノ椅子は事前に申請しておく必要があります。",null,null,null,null,null,null,null,null,null,null,null,null,null,null,null,null,null,null,null,null,null,null,null,null,"椅子・ピアノ椅子・譜面台・椅子譜面台セットをつまんで（クリックしたまま）配置することができます。もし、不足することがあれば右クリックでコピーして配置してください。"]
[]
[]
[]
[]
[]
[]
[]
[null,null,null,null,null,null,null,null,"↑ドラムセットを使用する場合はこちらの譜面台マークを使用してください。"]

{"sheet":"運搬車輌用団体確認票","index":12,"n_rows":9,"n_cols":17,"rows_kept":9,"cut":false,"hidden":false,"merged":[[8,0,8,22],[1,0,1,22],[0,0,0,22],[2,0,2,22],[6,16,6,22],[4,0,4,21]]}
[{"$f":"著作権申請!E8","v":"第65回筑豊吹奏楽祭"}]
["楽器運搬車輌用団体確認票"]
["団 体 名"]
[]
[{"$f":"団体データ!K15","v":0}]
[]
[null,null,null,null,null,null,null,null,null,null,null,null,null,null,null,null,"吹奏楽部"]
[]
["筑豊吹奏楽連盟"]